{"text_format":"1","workbook":"xlsx","n_sheets":4,"sheets":["Анкета","Sheet1","Сбор данных","Tech"],"not_rendered":{"charts":0,"images":15,"macros":1,"external_links":0,"defined_names":60,"comments":0,"pivot_tables":0},"unopened":[],"bounds":{"document_bytes":16777216,"sheet_cells":100000,"rows_first":2000,"rows_last":500,"rows_between":2000,"halvings":0,"cell_chars":16384,"cell_head_chars":4096},"cells_cut":0,"cells_raw":0,"read":"whole","date_system":"1900"}

{"sheet":"Анкета","index":0,"n_rows":273,"n_cols":9,"rows_kept":273,"cut":false,"hidden":false,"merged":[[128,2,128,6],[263,2,264,2],[265,2,265,6],[233,2,234,2],[235,2,235,6],[242,2,242,6],[249,2,249,6],[195,2,196,2],[197,2,197,6],[205,2,205,6],[212,2,212,6],[220,2,220,6],[182,2,182,6],[142,2,143,2],[144,2,144,6],[151,2,151,6],[167,2,168,2],[169,2,169,6],[176,2,176,6],[157,2,157,6],[47,2,48,2],[49,2,49,6],[56,2,56,6],[67,2,68,2],[69,2,69,6],[121,2,121,6],[76,2,76,6],[91,2,91,6],[83,2,83,6],[105,2,106,2],[107,2,107,6],[114,2,114,6]]}
[]
[]
[]
[]
[]
[null,"Анкета Заявителя инфраструктурной премии \"Импульс\""]
[]
[null,null,"Правила работы с Анкетой"]
[null,null,"Шаг 1. Заполните блок общих вопросов о проекте. Для этого выберите пункт \"Общие вопросы\" на панели в левой части Анкеты."]
[null,null,"Шаг 2. Выберите одну или несколько номинаций, в которой Вы хотите принять участие. Для этого нажмите соответствующую кнопку на панели в левой части Анкеты."]
[null,null,"Шаг 3. В рамках номинаций выберите сферы, в которых Ваш проект планируется к реализации. Для этого проставьте галочку (нажмите на пустой квадрат), относящуюся к сфере."]
[]
[]
[]
[null,"Общие вопросы"]
[]
[null,null,"Вопросы","Ед. измерения","Поле для заполнения","поле для уточнений","Комментарии по заполнению","Пояснения","Проверено и подтверждено \n(заполняет Оргкомитет)"]
[null,null,"Наименование проекта ","-",null,null,"-","-"]
[null,null,"Страна реализации проекта","-","Страны-члены ООН (в алфавитном порядке)",null,"При выборе \"другое, свой вариант\", в поле для уточнений необходимо вписать свой вариант ответа","-"]
[null,null,"Регион реализации проекта","-","Список регионов РФ в алфавитном порядке",null,"При выборе \"другое, свой вариант\", в поле для уточнений необходимо вписать свой вариант ответа","-"]
[null,null,"Наименование инициатора проекта (компании, реализующей проект (СПК), и материнского Холдинга/Группы, в составе которой создается проектная компания)","-",null,null,"-","-"]
[null,null,"ИНН инициатора проекта","-",null,null,"-","-"]
[null,null,"Организация, финансирующая проект, отличная от инициатора проекта (при наличии)","-",null,null,"-","-"]
[null,null,"Генеральный подрядчик проекта (при наличии подписанного договора генерального подряда на строительство проекта).","-",null,null,"-","-"]
[null,null,"Участие в национальном проекте","-",null,null,"1. Необходимо выбрать вариант из списка. \n2. Список национальных проектов находится в Пояснениях (ячейке справа ►►►). \n3. В поле для комментариев необходимо перечислить национальные проекты, в которых предполагается участие проектом","Список национальных проектов"]
[null,null,"Величина капитальных затрат проекта в рублях в ценах базового года","млрд руб., без НДС",null,null,"В случае если функциональной валютой проекта не является Российский рубль, в поле для уточнений необходимо указать способ пересчёта, и в документе для подтверждения пометить данный пункт","-"]
[null,null,"Объём привлечения иностранного финансирования в рублях в ценах базового года","млрд руб., без НДС",null,null,"В случае если функциональной валютой проекта не является Российский рубль, в поле для уточнений необходимо указать способ пересчёта, и в документе для подтверждения пометить данный пункт","-"]
[null,null,"Объём капитальных вложений проекта, финансируемых за счёт частных инвестиций, в ценах базового года","млрд руб., без НДС.",null,null,"В случае если функциональной валютой проекта не является Российский рубль, в поле для уточнений необходимо указать способ пересчёта, и в документе для подтверждения пометить данный пункт","-"]
[null,null,"Доля затрат на покупку отечественного оборудования в стоимости капитальных затрат проекта, связанных с покупкой оборудования","%",null,null,null,"-"]
[null,null,"Наличие юридических лиц-нерезидентов в финансировании и управлении проектом","да/нет",null,null,"При выбора ответа \"Да\" необходимо в поле для уточнений перечислить нерезидентов и расписать их роли в финансировании и (или) управлении проектом","-"]
[null,null,"Текущая стадия реализации проекта","-","Стадии реализации проекта",null,"Необходимо выбрать вариант из списка\n\n","-"]
[null,null,"Базовый год, используемый в финансовой модели проекта","год",null,null,"Укажите базовый год в формате \"XXXX\", без указания слова \"год\" в конце","-"]
[null,null,"Месяц, год планируемого или фактического начала реализации проекта","месяц, год",null,null,"-","-"]
[null,null,"Месяц, год планируемого или фактического ввода проекта в эксплуатацию ","месяц, год",null,null,"-","-"]
[null,null,"Месяц, год планируемого или фактического выхода проекта на целевую загрузку","месяц, год",null,null,"В случае если выход на целевую загрузку не достигается в прогнозном периоде, необходимо указать год выхода на максимальную реализацию продукции","Выход проекта на целевую загрузку - достижение максимального уровня функционирования объекта, при котором он способен стабильно обеспечивать предусмотренный проектом объем продукции, услуг или выполнения функций в соответствии с установленными стандартами качества и нормативами"]
[null,null,"Недисконтированный срок окупаемости проекта","лет",null,null,"-","Недисконтированный срок окупаемости считается как время, за которое сумма поступлений от проекта полностью покроет первоначальные вложения"]
[null,null,"Недисконтированный срок окупаемости проекта для Бюджетов всех уровней","лет",null,null,"В случае если Бюджетное финансирование, в т.ч. в форме субсидий, не привлекалось, вводится 0\n","Недисконтированный срок окупаемости для Бюджета считается как период, за который сумма налоговых и иных поступлений от проекта полностью покроет первоначальные вложения Бюджета в проект"]
[null,null,"Количество созданных в рамках проекта рабочих мест ","ед.",null,null,"Указывается общее количество созданных рабочих мест при выходе проекта на целевую загрузку","-"]
[null,null,"Проект реализуется в рамках международной транспортной, технологической или научно-технической кооперации","да/нет",null,null,"В поле для уточнений необходимо перечислить виды кооперации и пояснить суть кооперации","-"]
[null,null,"Компания, реализующая проект, зарегистрирована на одной из территорий с преференциальным режимом (ОЭЗ, ТОР и СПВ)","-","Список ОЭЗ, ТОР и СПВ",null,"Необходимо выбрать вариант из списка ","-"]
[null,null,"Доля выручки (бюджет доходов) от международного бизнеса в общей выручке (бюджет доходов)","%",null,null,"Указать долю экспортной вырчки в совокупныз доходов при выходе проекта на целевую загрузку","Доля считается как отношение выручки проекта от реализации экспортируемой продукции к совокупной выручке проекта. "]
[null,null,"Описание проекта","-",null,null,"Опишите проект, указав основные цели реализации проекта, ожидаемые результаты, информацию об уникальных чертах проекта (роль, значимость) и т.п., не более 800 знаков с пробелами","-"]
[]
[]
[null,"Разработка и применение искусственного интеллекта"]
[]
[null,null,"Вопросы","Ед. измерения","Поле для заполнения","поле для уточнений","Комментарии","Пояснения","Проверено и подтверждено"]
[null,null,"В каких сферах предполагается реализация Вашего проекта?","Создание и эксплуатация дата-центров","Разработка продуктов в области ИИ"]
[]
[null,null,"Создание и эксплуатация дата-центров"]
[null,null,"Выручка проекта при выходе на целевую загрузку, в год","млрд руб., без НДС, в год",null,null,"-","-"]
[null,null,"Максимальная мощность создаваемой в рамках проекта инфраструктуры ","МВт",null,null,"-","-"]
[null,null,"Максимальная производительность создаваемой в рамках проекта инфраструктуры","TFLOPS",null,null,"-","-"]
[null,null,"Доля возобновляемых источников энергии в общем объёме потребления объектом","%",null,null,"В поле для уточнений необходимо указать виды возобновляемых источников энергии, потребляемые объектом","-"]
[null,null,"Проект предполагает сотрудничество с высшими образовательными учреждениями и исследовательскими институтами, в том числе иностранными","да/нет",null,null,"1. Выберите вариант из списка\n2. В поле для уточнений необходимо указать учреждение(я)","-"]
[null,null,"Проект предполагает использование инновационных технологий согласно перечню","да/нет",null,"Список технологий","1. Выберите вариант из списка\n2. В выпадающем списке слева необходимо выбрать соответствующую инновационную технологию (◄◄◄)","-"]
[null,null,"Разработка продуктов в области ИИ"]
[null,null,"Выручка проекта при выходе на целевую загрузку","млрд руб., без НДС, в год",null,null,"-","-"]
[null,null,"Количество активных пользователей продукта при выходе на целевую загрузку","чел. в год",null,null,"-","-"]
[null,null,"Потенциальная экономия ввиду снижения затрат при внедрении продуктов проекта в области ИИ","млрд руб., без НДС, в год",null,null,"-","-"]
[null,null,"Оценка F1 (точность) по результатам работы продукта, созданного в области ИИ","-",null,null,"Укажите значение от 0 до 1","-"]
[null,null,"Проект предполагает сотрудничество с высшими образовательными учреждениями и исследовательскими институтами, в том числе иностранными","да/нет",null,null,"1. Выберите вариант из списка\n2. В поле для уточнений необходимо указать учреждение(я)","-"]
[]
[]
[null,"Развитие Арктики и Дальнего Востока"]
[]
[null,null,"Вопросы","Ед. измерения","Поле для заполнения","поле для уточнений","Комментарии","Пояснения","Проверено и подтверждено"]
[null,null,"В каких сферах предполагается реализация Вашего проекта?","Транспортная инфраструктура для грузоперевозок","Транспортная инфраструктура для пассажирских перевозок","Производство","Энергетика"]
[]
[null,null,"Транспортная инфраструктура для грузоперевозок"]
[null,null,"Выручка проекта при выходе на целевую загрузку","млрд руб., без НДС, в год",null,null,"-","-"]
[null,null,"Пропускная способность транспортного объекта проекта","млн т в год",null,null,"-","-"]
[null,null,"Средняя загрузка транспортного объекта за период от начала операционной деятельности до выхода проекта на окупаемость","%",null,null,"-","-"]
[null,null,"Доля возобновляемых источников энергии в общем объёме потребления объектом","%",null,null,"В поле для уточнений необходимо указать виды возобновляемых источников энергии, потребляемые объектом","-"]
[null,null,"Уровень энергоэффективности объекта проекта (LEED)","-","Уровни энергоэффективности согласно методологии LEED",null,"1. Выберите вариант из списка\n2. В прилагаемом подтверждающем документе отметьте данный пункт и прокомментируйте, почему вы считаете, что объект соответствует выбранному уровню ","-"]
[null,null,"Проект предполагает использование инновационных технологий согласно перечню","да/нет",null,"Список технологий","1. Выберите вариант из списка\n2. В выпадающем списке слева необходимо выбрать соответствующую инновационную технологию (◄◄◄)","-"]
[null,null,"Транспортная инфраструктура для пассажирских перевозок"]
[null,null,"Выручка проекта при выходе на целевую загрузку","млрд руб., без НДС, в год",null,null,"-","-"]
[null,null,"Пропускная способность транспортного объекта проекта","тыс. пасс. в год",null,null,"-","-"]
[null,null,"Средняя загрузка транспортного объекта за период от начала операционной деятельности до выхода проекта на окупаемость","%",null,null,"-","-"]
[null,null,"Доля возобновляемых источников энергии в общем объёме потребления объектом","%",null,null,"В поле для уточнений необходимо указать виды возобновляемых источников энергии, потребляемые объектом","-"]
[null,null,"Уровень энергоэффективности объекта проекта (LEED)","-","Уровни энергоэффективности согласно методологии LEED",null,"1. Выберите вариант из списка\n2. В прилагаемом подтверждающем документе отметьте данный пункт и прокомментируйте, почему вы считаете, что объект соответствует выбранному уровню ","-"]
[null,null,"Проект предполагает использование инновационных технологий согласно перечню","да/нет",null,"Список технологий","1. Выберите вариант из списка\n2. В выпадающем списке слева необходимо выбрать соответствующую инновационную технологию (◄◄◄)","-"]
[null,null,"Производство"]
[null,null,"Выручка проекта при выходе на целевую загрузку","млрд руб., без НДС, в год",null,null,"-","-"]
[null,null,"Доля возобновляемых источников энергии в общем объёме потребления объектом","%",null,null,"В поле для уточнений необходимо указать виды возобновляемых источников энергии, потребляемые объектом","-"]
[null,null,"Уровень энергоэффективности объекта проекта (LEED)","-","Уровни энергоэффективности согласно методологии LEED",null,"1. Выберите вариант из списка\n2. В прилагаемом подтверждающем документе отметьте данный пункт и прокомментируйте, почему вы считаете, что объект соответствует выбранному уровню ","-"]
[null,null,"Проект предполагает использование инновационных технологий согласно перечню","да/нет",null,"Список технологий","1. Выберите вариант из списка\n2. В выпадающем списке слева необходимо выбрать соответствующую инновационную технологию (◄◄◄)","-"]
[null,null,"Продукция проекта предполагает работу с использованием инновационных технологий","да/нет",null,"Список технологий","1. Выберите вариант из списка\n2. В выпадающем списке слева необходимо выбрать соответствующую инновационную технологию (◄◄◄)","-"]
[null,null,"Проект предполагает сотрудничество с высшими образовательными учреждениями и исследовательскими институтами, в том числе иностранными","да/нет",null,null,"1. Выберите вариант из списка\n2. В поле для уточнений необходимо указать учреждение(я)","-"]
[null,null,"Проект реализуется в моногороде","да/нет",null,"Список моногородов","1. Выберите вариант из списка\n2. В выпадающем списке слева необходимо выбрать соответствующий моногород (◄◄◄)","-"]
[null,null,"Энергетика"]
[null,null,"Выручка проекта при выходе на целевую загрузку","млрд руб., без НДС, в год",null,null,"-","-"]
[null,null,"Объём генерации электроэнергии, при выходе проекта на целевую загрузку, в год","МВт*ч в год",null,null,"Необходимо заполнить информацию  по одному из двух пунктов: по текущему или следующему за ним","-"]
[null,null,"Протяженность линий электропередач для поставки электроэнергии в регионы Арктики и Дальнего Востока, строящихся/модернизирующихся проектом, при выходе на целевую загрузку, в год","км ",null,null,"Необходимо заполнить информацию  по одному из двух пунктов: по текущему или предыдущему","-"]
[null,null,"Количество потребителей электроэнергии, генерируемой и (или) поставляемой в регионы Арктики и Дальнего Востока проектом, при выходе на целевую загрузку, в год","чел.",null,null,"-","-"]
[null,null,"Уровень энергоэффективности объекта проекта (LEED)","-","Уровни энергоэффективности согласно методологии LEED",null,"1. Необходимо заполнить информацию  по одному из двух пунктов: по текущему или следующему за ним\n2. Заполняя данный пункт, выберите вариант из списка\n3. В прилагаемом подтверждающем документе отметьте данный пункт и прокомментируйте, почему вы считаете, что объект соответствует выбранному уровню ","-"]
[null,null,"Процент потерь (= ( энергия поданная в сеть - энергия потребленная потребителями)/энергия поданная в сеть*100%)","%",null,null,"Необходимо заполнить информацию  по одному из двух пунктов: по текущему или предыдущему","-"]
[null,null,"Доля возобновляемых источников энергии в общем объёме потребления объектом","%",null,null,"В поле для уточнений необходимо указать виды возобновляемых источников энергии, потребляемые объектом","-"]
[null,null,"Проект предполагает использование инновационных технологий согласно перечню","да/нет",null,"Список технологий","1. Выберите вариант из списка\n2. В выпадающем списке слева необходимо выбрать соответствующую инновационную технологию (◄◄◄)","-"]
[]
[]
[null,"Международная кооперация "]
[]
[null,null,"Вопросы","Ед. измерения","Поле для заполнения","поле для уточнений","Комментарии","Пояснения","Проверено и подтверждено"]
[null,null,"В каких сферах предполагается реализация Вашего проекта?","Транспортная инфраструктура для грузовых перевозок","Транспортная инфраструктура для пассажирских перевозок","Производство","Энергетика"]
[]
[null,null,"Транспортная инфраструктура для грузовых перевозок"]
[null,null,"Выручка проекта при выходе на целевую загрузку","млрд руб., без НДС, в год",null,null,"-","-"]
[null,null,"Пропускная способность транспортного объекта проекта","млн т в год",null,null,"-","-"]
[null,null,"Средняя загрузка транспортного объекта за период от начала операционной деятельности до выхода проекта на окупаемость","%",null,null,"-","-"]
[null,null,"Доля возобновляемых источников энергии в общем объёме потребления объектом","%",null,null,"В поле для уточнений необходимо указать виды возобновляемых источников энергии, потребляемые объектом","-"]
[null,null,"Уровень энергоэффективности объекта проекта (LEED)","-","Уровни энергоэффективности согласно методологии LEED",null,"1. Выберите вариант из списка\n2. В прилагаемом подтверждающем документе отметьте данный пункт и прокомментируйте, почему вы считаете, что объект соответствует выбранному уровню ","-"]
[null,null,"Проект предполагает использование инновационных технологий согласно перечню","да/нет",null,"Список технологий","1. Выберите вариант из списка\n2. В выпадающем списке слева необходимо выбрать соответствующую инновационную технологию (◄◄◄)","-"]
[null,null,"Транспортная инфраструктура для пассажирских перевозок"]
[null,null,"Выручка проекта при выходе на целевую загрузку","млрд руб., без НДС, в год",null,null,"-","-"]
[null,null,"Пропускная способность транспортного объекта проекта","тыс. пасс. в год",null,null,"-","-"]
[null,null,"Средняя загрузка транспортного объекта за период от начала операционной деятельности до выхода проекта на окупаемость","%",null,null,"-","-"]
[null,null,"Доля возобновляемых источников энергии в общем объёме потребления объектом","%",null,null,"В поле для уточнений необходимо указать виды возобновляемых источников энергии, потребляемые объектом","-"]
[null,null,"Уровень энергоэффективности объекта проекта (LEED)","-","Уровни энергоэффективности согласно методологии LEED",null,"1. Выберите вариант из списка\n2. В прилагаемом подтверждающем документе отметьте данный пункт и прокомментируйте, почему вы считаете, что объект соответствует выбранному уровню ","-"]
[null,null,"Проект предполагает использование инновационных технологий согласно перечню","да/нет",null,"Список технологий","1. Выберите вариант из списка\n2. В выпадающем списке слева необходимо выбрать соответствующую инновационную технологию (◄◄◄)","-"]
[null,null,"Производство"]
[null,null,"Выручка проекта при выходе на целевую загрузку","млрд руб., без НДС, в год",null,null,"-","-"]
[null,null,"Доля возобновляемых источников энергии в общем объёме потребления объектом","%",null,null,"В поле для уточнений необходимо указать виды возобновляемых источников энергии, потребляемые объектом","-"]
[null,null,"Уровень энергоэффективности объекта проекта (LEED)","-","Уровни энергоэффективности согласно методологии LEED",null,"1. Выберите вариант из списка\n2. В прилагаемом подтверждающем документе отметьте данный пункт и прокомментируйте, почему вы считаете, что объект соответствует выбранному уровню ","-"]
[null,null,"Проект предполагает использование инновационных технологий согласно перечню","да/нет",null,"Список технологий","1. Выберите вариант из списка\n2. В выпадающем списке слева необходимо выбрать соответствующую инновационную технологию (◄◄◄)","-"]
[null,null,"Продукция проекта предполагает работу с использованием инновационных технологий","да/нет",null,"Список технологий","1. Выберите вариант из списка\n2. В выпадающем списке слева необходимо выбрать соответствующую инновационную технологию (◄◄◄)","-"]
[null,null,"Проект предполагает сотрудничество с высшими образовательными учреждениями и исследовательскими институтами, в том числе иностранными","да/нет",null,null,"1. Выберите вариант из списка\n2. В поле для уточнений необходимо указать учреждение(я)","-"]
[null,null,"Энергетика"]
[null,null,"Выручка проекта при выходе на целевую загрузку","млрд руб., без НДС, в год",null,null,"-","-"]
[null,null,"Объём генерации электроэнергии, при выходе проекта на целевую загрузку, в год","МВт*ч в год",null,null,"Необходимо заполнить информацию  по одному из двух пунктов: по текущему или следующему за ним","-"]
[null,null,"Протяженность линий электропередач для поставки электроэнергии в регионы Арктики и Дальнего Востока, строящихся/модернизирующихся проектом, при выходе на целевую загрузку, в год","км ",null,null,"Необходимо заполнить информацию  по одному из двух пунктов: по текущему или предыдущему","-"]
[null,null,"Количество потребителей электроэнергии, генерируемой и (или) поставляемой в регионы Арктики и Дальнего Востока проектом, при выходе на целевую загрузку, в год","чел.",null,null,"-","-"]
[null,null,"Уровень энергоэффективности объекта проекта (LEED)","-","Уровни энергоэффективности согласно методологии LEED",null,"1. Необходимо заполнить информацию  по одному из двух пунктов: по текущему или следующему за ним\n2. Заполняя данный пункт, выберите вариант из списка\n3. В прилагаемом подтверждающем документе отметьте данный пункт и прокомментируйте, почему вы считаете, что объект соответствует выбранному уровню ","-"]
[null,null,"Процент потерь (= ( энергия поданная в сеть - энергия потребленная потребителями)/энергия поданная в сеть*100%)","%",null,null,"Необходимо заполнить информацию  по одному из двух пунктов: по текущему или предыдущему","-"]
[null,null,"Доля возобновляемых источников энергии в общем объёме потребления объектом","%",null,null,"В поле для уточнений необходимо указать виды возобновляемых источников энергии, потребляемые объектом","-"]
[null,null,"Проект предполагает использование инновационных технологий согласно перечню","да/нет",null,"Список технологий","1. Выберите вариант из списка\n2. В выпадающем списке слева необходимо выбрать соответствующую инновационную технологию (◄◄◄)","-"]
[]
[]
[null,"Образование XXI века"]
[]
[null,null,"Вопросы","Ед. измерения","Поле для заполнения","поле для уточнений","Комментарии","Пояснения","Проверено и подтверждено"]
[null,null,"В каких сферах предполагается реализация Вашего проекта?","Высшее образование / СПО","Среднее общее образование","Онлайн-платформы"]
[]
[null,null,"Высшее образование / СПО"]
[null,null,"Выручка проекта при выходе на целевую загрузку","млрд руб., без НДС, в год",null,null,"-","-"]
[null,null,"Число студентов при выходе на целевую загрузку в год","чел. в год",null,null,"-","-"]
[null,null,"Количество компьютеров, которыми оснащён проект, при выходе на целевую загрузку","шт.",null,null,"-","-"]
[null,null,"Количество получателей бесплатных услуг при выходе проекта на целевую загрузку, в год","шт.",null,null,"-","-"]
[null,null,"Уровень энергоэффективности объекта проекта (LEED)","-","Уровни энергоэффективности согласно методологии LEED",null,"1. Выберите вариант из списка\n2. В прилагаемом подтверждающем документе отметьте данный пункт и прокомментируйте, почему вы считаете, что объект соответствует выбранному уровню ","-"]
[null,null,"Наличие в программе (или факультативно) дисциплин в области развития и применения инновационных технологий, а также инфраструктуры их преподавания","да/нет",null,"Список технологий","1. Выберите вариант из списка\n2. В выпадающем списке слева необходимо выбрать соответствующую инновационную технологию (◄◄◄)","-"]
[null,null,"Среднее общее образование"]
[null,null,"Число учеников при выходе на целевую загрузку, в год","чел. в год",null,null,"-","-"]
[null,null,"Количество компьютеров, которыми оснащён проект, при выходе на целевую загрузку","шт.",null,null,"-","-"]
[null,null,"Уровень энергоэффективности объекта проекта (LEED)","-","Уровни энергоэффективности согласно методологии LEED",null,"1. Выберите вариант из списка\n2. В прилагаемом подтверждающем документе отметьте данный пункт и прокомментируйте, почему вы считаете, что объект соответствует выбранному уровню ","-"]
[null,null,"Проект предполагает сотрудничество с высшими образовательными учреждениями и исследовательскими институтами, в том числе иностранными","да/нет",null,null,"1. Выберите вариант из списка\n2. В поле для уточнений необходимо указать учреждение(я)","-"]
[null,null,"Наличие в программе (или факультативно) дисциплин в области развития и применения инновационных технологий, а также инфраструктуры их преподавания","да/нет",null,"Список технологий","1. Выберите вариант из списка\n2. В выпадающем списке слева необходимо выбрать соответствующую инновационную технологию (◄◄◄)","-"]
[null,null,"Онлайн-платформы"]
[null,null,"Выручка проекта при выходе на целевую загрузку","млрд руб., без НДС, в год",null,null,"-","-"]
[null,null,"Число студентов при выходе на целевую загрузку в год","чел. в год",null,null,"-","-"]
[null,null,"Количество бюджетных мест при выходе проекта на целевую загрузку","шт.",null,null,"-","-"]
[null,null,"Наличие в программе (или факультативно) дисциплин в области развития и применения инновационных технологий, а также инфраструктуры их преподавания","да/нет",null,"Список технологий","1. Выберите вариант из списка\n2. В выпадающем списке слева необходимо выбрать соответствующую инновационную технологию (◄◄◄)","-"]
[]
[]
[null,"Здоровье нации"]
[]
[null,null,"Вопросы","Ед. измерения","Поле для заполнения","поле для уточнений","Комментарии","Пояснения","Проверено и подтверждено"]
[null,null,"В каких сферах предполагается реализация Вашего проекта?","Медицинские учреждения","Производство медицинских препаратов","Производство медицинского оборудования"]
[]
[null,null,"Медицинские учреждения"]
[null,null,"Выручка проекта при выходе на целевую загрузку","млрд руб., без НДС, в год",null,null,"-","-"]
[null,null,"Количество пациентов при выходе на целевую загрузку, в год","чел. в год",null,null,"-","-"]
[null,null,"Количество получателей бесплатных услуг при выходе проекта на целевую загрузку, в год","чел.",null,null,"-","-"]
[null,null,"Уровень энергоэффективности объекта проекта (LEED)","-","Уровни энергоэффективности согласно методологии LEED",null,"1. Выберите вариант из списка\n2. В прилагаемом подтверждающем документе отметьте данный пункт и прокомментируйте, почему вы считаете, что объект соответствует выбранному уровню ","-"]
[null,null,"Использование дорогостоящего современного оборудования","да/нет",null,null,"1. Необходимо выбрать вариант из списка\n2. Список национальных проектов находится в Пояснениях (ячейке справа ►►►) \n3. В поле для уточнений необходимо перечислить виды оборудования","Список дорогостоящего оборудования для медицинских учреждений"]
[null,null,"Проект предполагает сотрудничество с высшими образовательными учреждениями и исследовательскими институтами, в том числе иностранными","да/нет",null,null,"1. Выберите вариант из списка\n2. В поле для уточнений необходимо указать учреждение(я)","-"]
[null,null,"Производство медицинских препаратов"]
[null,null,"Выручка проекта при выходе на целевую загрузку","млрд руб., без НДС, в год",null,null,"-","-"]
[null,null,"Уровень энергоэффективности объекта проекта (LEED)","-","Уровни энергоэффективности согласно методологии LEED",null,"1. Выберите вариант из списка\n2. В прилагаемом подтверждающем документе отметьте данный пункт и прокомментируйте, почему вы считаете, что объект соответствует выбранному уровню ","-"]
[null,null,"Доля возобновляемых источников энергии в общем объёме потребления объектом","%",null,null,"В поле для уточнений необходимо указать виды возобновляемых источников энергии, потребляемые объектом","-"]
[null,null,"Проект предполагает использование инновационных технологий согласно перечню","да/нет",null,"Список технологий","1. Выберите вариант из списка\n2. В выпадающем списке слева необходимо выбрать соответствующую инновационную технологию (◄◄◄)","-"]
[null,null,"Проект предполагает сотрудничество с высшими образовательными учреждениями и исследовательскими институтами, в том числе иностранными","да/нет",null,null,"1. Выберите вариант из списка\n2. В поле для уточнений необходимо указать учреждение(я)","-"]
[null,null,"Производство медицинского оборудования"]
[null,null,"Выручка проекта при выходе на целевую загрузку","млрд руб., без НДС, в год",null,null,"-","-"]
[null,null,"Уровень энергоэффективности объекта проекта (LEED)","-","Уровни энергоэффективности согласно методологии LEED",null,"1. Выберите вариант из списка\n2. В прилагаемом подтверждающем документе отметьте данный пункт и прокомментируйте, почему вы считаете, что объект соответствует выбранному уровню ","-"]
[null,null,"Доля возобновляемых источников энергии в общем объёме потребления объектом","%",null,null,"В поле для уточнений необходимо указать виды возобновляемых источников энергии, потребляемые объектом","-"]
[null,null,"Проект предполагает использование инновационных технологий согласно перечню","да/нет",null,"Список технологий","1. Выберите вариант из списка\n2. В выпадающем списке слева необходимо выбрать соответствующую инновационную технологию (◄◄◄)","-"]
[null,null,"Продукция проекта предполагает работу с использованием инновационных технологий","да/нет",null,"Список технологий","1. Выберите вариант из списка\n2. В выпадающем списке слева необходимо выбрать соответствующую инновационную технологию (◄◄◄)","-"]
[null,null,"Проект предполагает сотрудничество с высшими образовательными учреждениями и исследовательскими институтами, в том числе иностранными","да/нет",null,null,"1. Выберите вариант из списка\n2. В поле для уточнений необходимо указать учреждение(я)","-"]
[null,null,"Проект реализуется в моногороде","да/нет",null,"Список моногородов","1. Выберите вариант из списка\n2. В выпадающем списке слева необходимо выбрать соответствующий моногород (◄◄◄)","-"]
[]
[]
[null,"Качественная городская среда"]
[]
[null,null,"Вопросы","Ед. измерения","Поле для заполнения","поле для уточнений","Комментарии","Пояснения","Проверено и подтверждено"]
[null,null,"В каких сферах предполагается реализация Вашего проекта?","Жилищное строительство","Транспортная инфраструктура","Жилищно-коммунальная инфраструктура","Сохранение исторического облика города"]
[]
[null,null,"Жилищное строительство"]
[null,null,"Выручка проекта при выходе на целевую загрузку","млрд руб., без НДС, в год",null,null,"-","-"]
[null,null,"Площадь застройки объекта","м2",null,null,"-","-"]
[null,null,"Плотность застройки объекта","тыс. кв. м/га",null,null,"-","-"]
[null,null,"Количество потенциальных жителей","чел.",null,null,"-","-"]
[null,null,"Уровень энергоэффективности объекта проекта (LEED)","-","Уровни энергоэффективности согласно методологии LEED",null,"1. Выберите вариант из списка\n2. В прилагаемом подтверждающем документе отметьте данный пункт и прокомментируйте, почему вы считаете, что объект соответствует выбранному уровню ","-"]
[null,null,"Доля возобновляемых источников энергии в общем объёме потребления объектом","%",null,null,"В поле для уточнений необходимо указать виды возобновляемых источников энергии, потребляемые объектом","-"]
[null,null,"Проект предполагает использование инновационных технологий согласно перечню","да/нет",null,"Список технологий","1. Выберите вариант из списка\n2. В выпадающем списке слева необходимо выбрать соответствующую инновационную технологию (◄◄◄)","-"]
[null,null,"Транспортная инфраструктура"]
[null,null,"Выручка проекта при выходе на целевую загрузку","млрд руб., без НДС, в год",null,null,"-","-"]
[null,null,"Пропускная способность транспортного объекта","тыс. пасс. в год",null,null,"-","-"]
[null,null,"Средняя загрузка транспортного объекта за период от начала операционной деятельности до выхода проекта на окупаемость, в год","тыс. пасс. в год",null,null,"-","-"]
[null,null,"Уровень энергоэффективности объекта проекта (LEED)","-","Уровни энергоэффективности согласно методологии LEED",null,"1. Выберите вариант из списка\n2. В прилагаемом подтверждающем документе отметьте данный пункт и прокомментируйте, почему вы считаете, что объект соответствует выбранному уровню ","-"]
[null,null,"Доля возобновляемых источников энергии в общем объёме потребления объектом","%",null,null,"В поле для уточнений необходимо указать виды возобновляемых источников энергии, потребляемые объектом","-"]
[null,null,"Проект предполагает использование инновационных технологий согласно перечню","да/нет",null,"Список технологий","1. Выберите вариант из списка\n2. В выпадающем списке слева необходимо выбрать соответствующую инновационную технологию (◄◄◄)","-"]
[null,null,"Жилищно-коммунальная инфраструктура"]
[null,null,"Выручка проекта при выходе на целевую загрузку, за год","млрд руб., без НДС, в год",null,null,"-","-"]
[null,null,"Количество активных пользователей, при выходе проекта на целевую загрузку, в год","чел. в год",null,null,"-","-"]
[null,null,"Протяжённость инженерных сетей, строимых (модернизируемых) объектом","км.",null,null,"-","-"]
[null,null,"Мощность создаваемого (модернизируемого) объекта инфраструктуры в сфере ЖКХ","МВт",null,null,"-","-"]
[null,null,"Уровень энергоэффективности объекта проекта (LEED)","-","Уровни энергоэффективности согласно методологии LEED",null,"1. Выберите вариант из списка\n2. В прилагаемом подтверждающем документе отметьте данный пункт и прокомментируйте, почему вы считаете, что объект соответствует выбранному уровню ","-"]
[null,null,"Доля возобновляемых источников энергии в общем объёме потребления объектом","%",null,null,"В поле для уточнений необходимо указать виды возобновляемых источников энергии, потребляемые объектом","-"]
[null,null,"Проект предполагает использование инновационных технологий согласно перечню","да/нет",null,"Список технологий","1. Выберите вариант из списка\n2. В выпадающем списке слева необходимо выбрать соответствующую инновационную технологию (◄◄◄)","-"]
[null,null,"Сохранение исторического облика города"]
[null,null,"Выручка проекта при выходе на целевую загрузку","млрд руб., без НДС, в год",null,null,"-","-"]
[null,null,"Площадь застройки объекта на месте расположения существующего здания/сооружения культурно-исторического характера","м2",null,null,"Необходимо заполнить информацию  по одному из двух пунктов: по текущему или следующему за ним","-"]
[null,null,"Общая площадь восстановленных или адаптированных зданий и сооружений","м2",null,null,"Необходимо заполнить информацию  по одному из двух пунктов: по текущему или предыдущему","-"]
[null,null,"Проект предполагает сотрудничество с высшими образовательными учреждениями и исследовательскими институтами, в том числе иностранными","да/нет",null,null,"1. Выберите вариант из списка\n2. В поле для уточнений необходимо указать учреждение(я)","-"]
[null,null,"Значения проекта для культурно-исторического наследия (региональное / федеральное / ЮНЕСКО)","да/нет",null,null,"В поле для уточнений необходимо перечислить объекты культурного наследия","-"]
[null,null,"Проект предполагает использование инновационных технологий согласно перечню","да/нет",null,"Список технологий","1. Выберите вариант из списка\n2. В выпадающем списке слева необходимо выбрать соответствующую инновационную технологию (◄◄◄)","-"]
[null,null,"Проект предполагает адаптацию объектов под современное использование","да/нет",null,null,"В поле для уточнений необходимо указать функциональность объекта после завершения работа по сохранению объекта","-"]
[]
[]
[null,"Инфраструктурный каркас страны"]
[]
[null,null,"Вопросы","Ед. измерения","Поле для заполнения","поле для уточнений","Комментарии",null,"Проверено и подтверждено"]
[null,null,"В каких сферах предполагается реализация Вашего проекта?","Транспортная инфраструктура для грузоперевозок","Транспортная инфраструктура для пассажирских перевозок","Энергетика"]
[]
[null,null,"Транспортная инфраструктура для грузоперевозок"]
[null,null,"Выручка проекта при выходе на целевую загрузку","млрд руб., без НДС, в год",null,null,"-","-"]
[null,null,"Пропускная способность транспортного объекта проекта","млн т в год",null,null,"-","-"]
[null,null,"Средняя загрузка транспортного объекта за период от начала операционной деятельности до выхода проекта на окупаемость","%",null,null,"-","-"]
[null,null,"Доля возобновляемых источников энергии в общем объёме потребления объектом","%",null,null,"В поле для уточнений необходимо указать виды возобновляемых источников энергии, потребляемые объектом","-"]
[null,null,"Уровень энергоэффективности объекта проекта (LEED)","-","Уровни энергоэффективности согласно методологии LEED",null,"1. Выберите вариант из списка\n2. В прилагаемом подтверждающем документе отметьте данный пункт и прокомментируйте, почему вы считаете, что объект соответствует выбранному уровню ","-"]
[null,null,"Проект предполагает использование инновационных технологий согласно перечню","да/нет",null,"Список технологий","1. Выберите вариант из списка\n2. В выпадающем списке слева необходимо выбрать соответствующую инновационную технологию (◄◄◄)","-"]
[null,null,"Транспортная инфраструктура для пассажирских перевозок"]
[null,null,"Выручка проекта при выходе на целевую загрузку","млрд руб., без НДС, в год",null,null,"-","-"]
[null,null,"Пропускная способность транспортного объекта проекта","тыс. пасс. в год",null,null,"-","-"]
[null,null,"Средняя загрузка транспортного объекта за период от начала операционной деятельности до выхода проекта на окупаемость","%",null,null,"-","-"]
[null,null,"Доля возобновляемых источников энергии в общем объёме потребления объектом","%",null,null,"В поле для уточнений необходимо указать виды возобновляемых источников энергии, потребляемые объектом","-"]
[null,null,"Уровень энергоэффективности объекта проекта (LEED)","-","Уровни энергоэффективности согласно методологии LEED",null,"1. Выберите вариант из списка\n2. В прилагаемом подтверждающем документе отметьте данный пункт и прокомментируйте, почему вы считаете, что объект соответствует выбранному уровню ","-"]
[null,null,"Проект предполагает использование инновационных технологий согласно перечню","да/нет",null,"Список технологий","1. Выберите вариант из списка\n2. В выпадающем списке слева необходимо выбрать соответствующую инновационную технологию (◄◄◄)","-"]
[null,null,"Энергетика"]
[null,null,"Выручка проекта при выходе на целевую загрузку","млрд руб., без НДС, в год",null,null,"-","-"]
[null,null,"Объём генерации электроэнергии, при выходе проекта на целевую загрузку, в год","МВт*ч в год",null,null,"Необходимо заполнить информацию  по одному из двух пунктов: по текущему или следующему за ним","-"]
[null,null,"Протяженность линий электропередач для поставки электроэнергии, строящихся/модернизирующихся проектом, при выходе на целевую загрузку, в год","км ",null,null,"Необходимо заполнить информацию  по одному из двух пунктов: по текущему или предыдущему","-"]
[null,null,"Количество потребителей электроэнергии, генерируемой и (или) поставляемой проектом, при выходе на целевую загрузку, в год","чел.",null,null,"-","-"]
[null,null,"Уровень энергоэффективности объекта проекта (LEED)","-","Уровни энергоэффективности согласно методологии LEED",null,"1. Необходимо заполнить информацию  по одному из двух пунктов: по текущему или следующему за ним\n2. Заполняя данный пункт, выберите вариант из списка\n3. В прилагаемом подтверждающем документе отметьте данный пункт и прокомментируйте, почему вы считаете, что объект соответствует выбранному уровню ","-"]
[null,null,"Процент потерь (= ( энергия поданная в сеть - энергия потребленная потребителями)/энергия поданная в сеть*100%)","%",null,null,"Необходимо заполнить информацию  по одному из двух пунктов: по текущему или предыдущему","-"]
[null,null,"Доля возобновляемых источников энергии в общем объёме потребления объектом","%",null,null,"В поле для уточнений необходимо указать виды возобновляемых источников энергии, потребляемые объектом","-"]
[null,null,"Проект предполагает использование инновационных технологий согласно перечню","да/нет",null,"Список технологий","1. Выберите вариант из списка\n2. В выпадающем списке слева необходимо выбрать соответствующую инновационную технологию (◄◄◄)","-"]
[]
[]
[null,"Технологическое лидерство"]
[]
[null,null,"Вопросы","Ед. измерения","Поле для заполнения","поле для уточнений","Комментарии","Пояснения","Проверено и подтверждено"]
[null,null,"В каких сферах предполагается реализация Вашего проекта?","Производство"]
[]
[null,null,"Производство"]
[null,null,"Выручка проекта при выходе на целевую загрузку","млрд руб., без НДС, в год",null,null,"-","-"]
[null,null,"Доля возобновляемых источников энергии в общем объёме потребления объектом","%",null,null,"В поле для уточнений необходимо указать виды возобновляемых источников энергии, потребляемые объектом","-"]
[null,null,"Уровень энергоэффективности объекта проекта (LEED)","-","Уровни энергоэффективности согласно методологии LEED",null,"1. Выберите вариант из списка\n2. В прилагаемом подтверждающем документе отметьте данный пункт и прокомментируйте, почему вы считаете, что объект соответствует выбранному уровню ","-"]
[null,null,"Продукция проекта предполагает работу с использованием инновационных технологий","да/нет",null,"Список технологий","1. Выберите вариант из списка\n2. В выпадающем списке слева необходимо выбрать соответствующую инновационную технологию (◄◄◄)","-"]
[null,null,"Проект предполагает использование инновационных технологий согласно перечню","да/нет",null,"Список технологий","1. Выберите вариант из списка\n2. В выпадающем списке слева необходимо выбрать соответствующую инновационную технологию (◄◄◄)","-"]
[null,null,"Проект предполагает сотрудничество с высшими образовательными учреждениями и исследовательскими институтами, в том числе иностранными","да/нет",null,null,"1. Выберите вариант из списка\n2. В поле для уточнений необходимо указать учреждение(я)","-"]
[null,null,"Проект реализуется в моногороде","да/нет",null,"Список моногородов","1. Выберите вариант из списка\n2. В выпадающем списке слева необходимо выбрать соответствующий моногород (◄◄◄)","-"]

{"sheet":"Sheet1","index":1,"n_rows":24,"n_cols":5,"rows_kept":24,"cut":false,"hidden":true,"merged":[]}
[]
[null,"Зафиксировать шапку столбцов"]
[null,"Просила добавить столбец с отметкой о проверке и наличии подтверждений Орг.комитетом справа. Добавить и учесть, что анкета в масштабе не менее 50-60% должна помещаться на ширину экрана"]
[null,"Столбец H - Приложения. По факту там пояснения. Просьба привести к одной логике"]
[null,"В регионы добавить новые территории (сейчас большой политический косяк!)",null,{"$f":"Tech!I2","v":"Список регионов РФ в алфавитном порядке"}]
[null,"Предложение, указывать подобное в две строки и не уходить с заполнением куда-то вправо",null,{"$f":"Анкета!C25","v":"Участие в национальном проекте"}]
[null,null,null,"и т.п."]
[null,null,null,{"$f":"Анкета!H121","v":"-"}]
[]
[null,"Разделить \"Пояснения\" на 2 строки. У нас расчетник не сработает. В целом базовый год можно сделать какой-то одной строкой и не плодить его по разным показателям. Пусть все к одному году приводят",null,{"$f":"Анкета!G26","v":"В случае если функциональной валютой проекта не является Российский рубль, в поле для уточнений необходимо указать способ пересчёта, и в документе для подтверждения пометить данный пункт"}]
[null,null,null,{"$f":"Анкета!G27","v":"В случае если функциональной валютой проекта не является Российский рубль, в поле для уточнений необходимо указать способ пересчёта, и в документе для подтверждения пометить данный пункт"}]
[null,null,null,{"$f":"Анкета!G28","v":"В случае если функциональной валютой проекта не является Российский рубль, в поле для уточнений необходимо указать способ пересчёта, и в документе для подтверждения пометить данный пункт"}]
[null,null,null,{"$f":"Анкета!G29","v":0}]
[null,"Исправила наименование сферы. "]
[null,"Не указан сам год. Выручку пересчитать будет невозможно.\nДобавить тут и в аналогичных пунктах далее",null,{"$f":"Анкета!C51","v":"Выручка проекта при выходе на целевую загрузку, в год"}]
[]
[null,"Почему LEED? Система не шире, чем A-G, при этом зарубежная",null,"везде"]
[null,"Не та классификация",null,{"$f":"Анкета!E91","v":0}]
[null,null,null,{"$f":"Анкета!E190","v":0},"Проверить все моногорода"]
[null,"Заменила показатель"]
[null,"Убрать северный завоз",null,{"$f":"Анкета!C268","v":"Доля возобновляемых источников энергии в общем объёме потребления объектом"}]
[]
[null,"Почему тут арктика-то*?",null,{"$f":"Анкета!C253","v":"Протяженность линий электропередач для поставки электроэнергии, строящихся/модернизирующихся проектом, при выходе на целевую загрузку, в год"}]
[null,null,null,{"$f":"Анкета!C254","v":"Количество потребителей электроэнергии, генерируемой и (или) поставляемой проектом, при выходе на целевую загрузку, в год"}]

{"sheet":"Сбор данных","index":2,"n_rows":7,"n_cols":179,"rows_kept":7,"cut":false,"hidden":true,"merged":[[2,66,2,71],[1,92,1,106],[1,28,1,38],[2,34,2,38],[1,39,1,65],[2,39,2,44],[2,45,2,50],[2,51,2,57],[2,58,2,65],[1,107,1,124],[2,118,2,124],[2,132,2,137],[1,125,1,151],[2,125,2,131],[2,152,2,157],[2,138,2,144],[2,145,2,151],[2,107,2,112],[2,113,2,117],[2,172,2,178],[1,172,1,178],[2,1,2,9],[2,13,2,27],[1,1,1,27],[2,72,2,77],[2,78,2,83],[2,98,2,102],[2,103,2,106],[2,164,2,171],[1,152,1,171],[2,28,2,33],[2,84,2,91],[1,66,1,91],[2,92,2,97],[2,158,2,163]]}
[]
[null,"Общие критерии",null,null,null,null,null,null,null,null,null,null,null,null,null,null,null,null,null,null,null,null,null,null,null,null,null,null,"Разработка и применение искусственного интеллекта",null,null,null,null,null,null,null,null,null,null,"Развитие Арктики и Дальнего Востока",null,null,null,null,null,null,null,null,null,null,null,null,null,null,null,null,null,null,null,null,null,null,null,null,null,null,"Международная кооперация",null,null,null,null,null,null,null,null,null,null,null,null,null,null,null,null,null,null,null,null,null,null,null,null,null,"Образование XXI века",null,null,null,null,null,null,null,null,null,null,null,null,null,null,"Здоровье нации",null,null,null,null,null,null,null,null,null,null,null,null,null,null,null,null,null,"Качественная городская среда",null,null,null,null,null,null,null,null,null,null,null,null,null,null,null,null,null,null,null,null,null,null,null,null,null,null,"Инфраструктурный каркас страны",null,null,null,null,null,null,null,null,null,null,null,null,null,null,null,null,null,null,null,"Технологическое лидерство"]
[null,"Общие данные по проекту",null,null,null,null,null,null,null,null,null,null,null,"Общие вопросы для расчёта",null,null,null,null,null,null,null,null,null,null,null,null,null,null,"Создание и эксплуатация мощностей для работы ИИ",null,null,null,null,null,"Разработка продуктов в области ИИ",null,null,null,null,"Транспортная инфраструктура для грузоперевозок",null,null,null,null,null,"Транспортная инфраструктура для пассажирских перевозок",null,null,null,null,null,"Производство",null,null,null,null,null,null,"Энергетика",null,null,null,null,null,null,null,"Транспортная инфраструктура для грузоперевозок",null,null,null,null,null,"Транспортная инфраструктура для пассажирских перевозок",null,null,null,null,null,"Производство",null,null,null,null,null,"Энергетика",null,null,null,null,null,null,null,"Высшее образование / СПО",null,null,null,null,null,"Среднее общее образование",null,null,null,null,"Онлайн-платформы",null,null,null,"Медицинские учреждения",null,null,null,null,null,"Производство медицинских препаратов",null,null,null,null,"Производство медицинского оборудования",null,null,null,null,null,null,"Жилищное строительство",null,null,null,null,null,null,"Транспортная инфраструктура",null,null,null,null,null,"Жилищно-коммунальная инфраструктура",null,null,null,null,null,null,"Сохранение исторического облика города",null,null,null,null,null,null,"Транспортная инфраструктура для грузоперевозок",null,null,null,null,null,"Транспортная инфраструктура для пассажирских перевозок",null,null,null,null,null,"Энергетика",null,null,null,null,null,null,null,"Производство"]
[null,"Наименование Проекта","Страна реализации проекта","Регион реализации Проекта","Инициаторы Проекта","ИНН Инициатора Проекта ","Финансирующая организация","Подрядчик","Участие в национальном проекте","Стадия реализации Проекта","Описание проекта","Дата начала реализации Проекта","Дата ввода в эксплуатацию","Капитальные вложения в проект","Объём привлечения иностранного финансирования","Объём капитальных вложений, финансируемых за счёт частных инвестиций","Доля отечественного оборудования","Наличие юридических лиц - нерезидентов в финансировании и управлении проектом","Базовый год","Дата выхода на целевую загрузку","Срок окупаемости Проекта ","Срок окупаемости для бюджетов всех уровней","Создание новых рабочих мест","Проект реализуется в рамках международной кооперации","Регистрация на одной из территорий с преференциальным режимом","Доля выручки от международного бизнеса","Форма для заполнения 1","Форма для заполнения 2","Выручка проекта, при выходе на целевую загрузку, за год","Максимальная мощность создаваемой в рамках проекта инфраструктуры ","Максимальная производительность создаваемой в рамках проекта инфраструктуры ","Доля возобновляемых источников энергии в общем объёме потребления объектом","Проект предполагает сотрудничество с высшими образовательными учреждениями и исследовательскими институтами, в том числе иностранными","Проект предполагает использование инновационных технологий согласно перечню","Выручка проекта, при выходе на целевую загрузку, за год","Количество активных пользователей продукта, при выходе на целевую загрузку, в год","Потенциальная экономия на снижении затрат от внедрения продуктов проекта в области ИИ, при выходе на целевую загрузку, в год","Оценка F1 (точность) по результатам работы продукта, созданного в области ИИ","Проект предполагает сотрудничество с высшими образовательными учреждениями и исследовательскими институтами, в том числе иностранными","Выручка проекта, при выходе на целевую загрузку, за год","Пропускная способность объекта проекта","Средняя загрузка транспортного объекта","Доля возобновляемых источников энергии в общем объёме потребления объектом","Уровень энергоэффективности объекта проекта (LEED)","Проект предполагает использование инновационных технологий согласно перечню","Выручка проекта, при выходе на целевую загрузку, за год","Пропускная способность объекта проекта","Средняя загрузка транспортного объекта","Доля возобновляемых источников энергии в общем объёме потребления объектом","Уровень энергоэффективности объекта проекта (LEED)","Проект предполагает использование инновационных технологий согласно перечню","Выручка проекта, при выходе на целевую загрузку, за год","Доля возобновляемых источников энергии в общем объёме потребления объектом","Уровень энергоэффективности объекта проекта (LEED)","Проект предполагает использование инновационных технологий согласно перечню","Продукция проекта предполагает работу с использованием инновационных технологий","Проект предполагает сотрудничество с высшими обращовательными учреждениями и исследовательскими институтами, в том числе иностанными","Проект реализуется в моногороде","Выручка проекта, при выходе на целевую загрузку, за год","Объём генерации электроэнергии при выходе проекта на полную мощность в год","Протяженность линий электропередач для поставки электроэнергии в регионы Арктики и Дальнего Востока, строящихся/модернизирующихся проектом, при выходе на целевую загрузку,  в год","Количество потребителей электроэнергии, генерируемой (или) поставляемой в регионы Арктики и Дальнего Востока проектом, при выходе на целевую загрузку, в год","Уровень энергоэффективности объекта проекта (LEED)","Процент потреь","Доля возобновляемых источников энергии в общем объёме потребления объектом","Проект предполагает использование инновационных технологий согласно перечню","Выручка проекта, при выходе на целевую загрузку, за год","Пропускная способность объекта проекта","Средняя загрузка транспортного объекта","Доля возобновляемых источников энергии в общем объёме потребления объектом","Уровень энергоэффективности объекта проекта (LEED)","Проект предполагает использование инновационных технологий согласно перечню","Выручка проекта, при выходе на целевую загрузку, за год","Пропускная способность объекта проекта","Средняя загрузка транспортного объекта","Доля возобновляемых источников энергии в общем объёме потребления объектом","Уровень энергоэффективности объекта проекта (LEED)","Проект предполагает использование инновационных технологий согласно перечню","Выручка проекта, при выходе на целевую загрузку, за год","Доля возобновляемых источников энергии в общем объёме потребления объектом","Уровень энергоэффективности объекта проекта (LEED)","Проект предполагает использование инновационных технологий согласно перечню","Продукция проекта предполагает работу с использованием инновационных технологий","Проект предполагает сотрудничество с высшими обращовательными учреждениями и исследовательскими институтами, в том числе иностанными","Выручка проекта, при выходе на целевую загрузку, за год","Объём генерации электроэнергии при выходе проекта на полную мощность в год","Протяженность линий электропередач для поставки электроэнергии в регионы Арктики и Дальнего Востока, строящихся/модернизирующихся проектом, при выходе на целевую загрузку,  в год","Количество потребителей электроэнергии, генерируемой (или) поставляемой в регионы Арктики и Дальнего Востока проектом, при выходе на целевую загрузку, в год","Уровень энергоэффективности объекта проекта (LEED)","Процент потреь","Доля возобновляемых источников энергии в общем объёме потребления объектом","Проект предполагает использование инновационных технологий согласно перечню","Выручка проекта при выходе на целевую загрузку","Число студентов при выходе на целевую загрузку в год","Количество компьютеров, которыми оснащён проект, при выходе на целевую загрузку","Количество получателей бесплатных услуг при выходе проекта на целевую загрузку, в год","Уровень энергоэффективности объекта проекта (LEED)","Наличие в программе (или факультативно) дисциплин в области развития и применения инновационных технологий, а также инфраструктуры их преподавания","Число учеников при выходе на целевую загрузку, в год","Количество компьютеров, которыми оснащён проект, при выходе на целевую загрузку","Уровень энергоэффективности объекта проекта (LEED)","Проект предполагает сотрудничество с высшими образовательными учреждениями и исследовательскими институтами, в том числе иностранными","Наличие в программе (или факультативно) дисциплин в области развития и применения инновационных технологий, а также инфраструктуры их преподавания","Выручка проекта при выходе на целевую загрузку","Число студентов при выходе на целевую загрузку в год","Количество бюджетных мест при выходе проекта на целевую загрузку","Наличие в программе (или факультативно) дисциплин в области развития и применения инновационных технологий, а также инфраструктуры их преподавания","Выручка проекта при выходе на целевую загрузку","Количество пациентов при выходе на целевую загрузку, в год","Количество получателей бесплатных услуг при выходе проекта на целевую загрузку, в год","Уровень энергоэффективности объекта проекта (LEED)","Использование дорогостоящего современного оборудования","Проект предполагает сотрудничество с высшими образовательными учреждениями и исследовательскими институтами, в том числе иностранными","Выручка проекта при выходе на целевую загрузку","Уровень энергоэффективности объекта проекта (LEED)","Доля возобновляемых источников энергии в общем объёме потребления объектом","Проект предполагает использование инновационных технологий согласно перечню","Проект предполагает сотрудничество с высшими образовательными учреждениями и исследовательскими институтами, в том числе иностранными","Выручка проекта при выходе на целевую загрузку","Уровень энергоэффективности объекта проекта (LEED)","Доля возобновляемых источников энергии в общем объёме потребления объектом","Проект предполагает использование инновационных технологий согласно перечню","Продукция проекта предполагает работу с использованием инновационных технологий","Проект предполагает сотрудничество с высшими образовательными учреждениями и исследовательскими институтами, в том числе иностранными","Проект реализуется в моногороде","Выручка проекта при выходе на целевую загрузку","Площадь застройки объекта","Плотность застройки объекта","Количество потенциальных жителей","Уровень энергоэффективности объекта проекта (LEED)","Доля возобновляемых источников энергии в общем объёме потребления объектом","Проект предполагает использование инновационных технологий согласно перечню","Выручка проекта при выходе на целевую загрузку","Пропускная способность транспортного объекта","Средняя загрузка транспортного объекта за период от начала операционной деятельности до выхода проекта на окупаемость, в год","Уровень энергоэффективности объекта проекта (LEED)","Доля возобновляемых источников энергии в общем объёме потребления объектом","Проект предполагает использование инновационных технологий согласно перечню","Выручка проекта при выходе на целевую загрузку, за год","Количество активных пользователей, при выходе проекта на целевую загрузку, в год","Протяжённость инженерных сетей, строимых (модернизируемых) объектом","Мощность создаваемого (модернизируемого) объекта инфраструктуры в сфере ЖКХ","Уровень энергоэффективности объекта проекта (LEED)","Доля возобновляемых источников энергии в общем объёме потребления объектом","Проект предполагает использование инновационных технологий согласно перечню","Выручка проекта при выходе на целевую загрузку","Площадь застройки объекта на месте расположения существующего здания/сооружения культурно-исторического характера","Общая площадь восстановленных или адаптированных зданий и сооружений","Проект предполагает сотрудничество с высшими образовательными учреждениями и исследовательскими институтами, в том числе иностранными","Значения проекта для культурно-исторического наследия (региональное / федеральное / ЮНЕСКО)","Проект предполагает использование инновационных технологий согласно перечню","Проект предполагает адаптацию объектов под современное использование","Выручка проекта, при выходе на целевую загрузку, за год","Пропускная способность объекта проекта","Средняя загрузка транспортного объекта","Доля возобновляемых источников энергии в общем объёме потребления объектом","Уровень энергоэффективности объекта проекта (LEED)","Проект предполагает использование инновационных технологий согласно перечню","Выручка проекта, при выходе на целевую загрузку, за год","Пропускная способность объекта проекта","Средняя загрузка транспортного объекта","Доля возобновляемых источников энергии в общем объёме потребления объектом","Уровень энергоэффективности объекта проекта (LEED)","Проект предполагает использование инновационных технологий согласно перечню","Выручка проекта, при выходе на целевую загрузку, за год","Объём генерации электроэнергии при выходе проекта на полную мощность в год","Протяженность линий электропередач для поставки электроэнергии в регионы Арктики и Дальнего Востока, строящихся/модернизирующихся проектом, при выходе на целевую загрузку,  в год","Количество потребителей электроэнергии, генерируемой (или) поставляемой в регионы Арктики и Дальнего Востока проектом, при выходе на целевую загрузку, в год","Уровень энергоэффективности объекта проекта (LEED)","Процент потреь","Доля возобновляемых источников энергии в общем объёме потребления объектом","Проект предполагает использование инновационных технологий согласно перечню","Выручка проекта, при выходе на целевую загрузку, за год","Доля возобновляемых источников энергии в общем объёме потребления объектом","Уровень энергоэффективности объекта проекта (LEED)","Проект предполагает использование инновационных технологий согласно перечню","Продукция проекта предполагает работу с использованием инновационных технологий","Проект предполагает сотрудничество с высшими обращовательными учреждениями и исследовательскими институтами, в том числе иностанными","Проект реализуется в моногороде"]
[null,{"$f":"Анкета!E$18","v":0},{"$f":"Анкета!E$19","v":"Страны-члены ООН (в алфавитном порядке)"},{"$f":"Анкета!E$20","v":"Список регионов РФ в алфавитном порядке"},{"$f":"Анкета!E$21","v":0},{"$f":"Анкета!E$22","v":0},{"$f":"Анкета!E$23","v":0},{"$f":"Анкета!E$24","v":0},{"$f":"Анкета!E$25","v":0},{"$f":"Анкета!E$31","v":"Стадии реализации проекта"},{"$f":"Анкета!E$42","v":0},{"$f":"Анкета!E$33","v":0},{"$f":"Анкета!E$34","v":0},{"$f":"Анкета!E$26","v":0},{"$f":"Анкета!E$27","v":0},{"$f":"Анкета!E$28","v":0},{"$f":"Анкета!E$29","v":0},{"$f":"Анкета!E$30","v":0},{"$f":"Анкета!E$32","v":0},{"$f":"Анкета!E$35","v":0},{"$f":"Анкета!E$36","v":0},{"$f":"Анкета!E$37","v":0},{"$f":"Анкета!E$38","v":0},{"$f":"Анкета!E$39","v":0},{"$f":"Анкета!E$40","v":"Список ОЭЗ, ТОР и СПВ"},{"$f":"Анкета!E$41","v":0},null,null,{"$f":"Анкета!E$51","v":0},{"$f":"Анкета!E$52","v":0},{"$f":"Анкета!E$53","v":0},{"$f":"Анкета!E$54","v":0},{"$f":"Анкета!E$55","v":0},{"$f":"Анкета!E$56","v":0},{"$f":"Анкета!E$58","v":0},{"$f":"Анкета!E$59","v":0},{"$f":"Анкета!E$60","v":0},{"$f":"Анкета!E$61","v":0},{"$f":"Анкета!E$62","v":0},{"$f":"Анкета!E$71","v":0},{"$f":"Анкета!E$72","v":0},{"$f":"Анкета!E$73","v":0},{"$f":"Анкета!E$74","v":0},{"$f":"Анкета!E$75","v":"Уровни энергоэффективности согласно методологии LEED"},{"$f":"Анкета!E$76","v":0},{"$f":"Анкета!E$78","v":0},{"$f":"Анкета!E$79","v":0},{"$f":"Анкета!E80","v":0},{"$f":"Анкета!E$81","v":0},{"$f":"Анкета!E$82","v":"Уровни энергоэффективности согласно методологии LEED"},{"$f":"Анкета!E$83","v":0},{"$f":"Анкета!E$85","v":0},{"$f":"Анкета!E$86","v":0},{"$f":"Анкета!E$87","v":"Уровни энергоэффективности согласно методологии LEED"},{"$f":"Анкета!E$88","v":0},{"$f":"Анкета!E$89","v":0},{"$f":"Анкета!E$90","v":0},{"$f":"Анкета!E$91","v":0},{"$f":"Анкета!E$93","v":0},{"$f":"Анкета!E$94","v":0},{"$f":"Анкета!E$95","v":0},{"$f":"Анкета!E$96","v":0},{"$f":"Анкета!E$97","v":"Уровни энергоэффективности согласно методологии LEED"},{"$f":"Анкета!E$98","v":0},{"$f":"Анкета!E$99","v":0},{"$f":"Анкета!E$100","v":0},{"$f":"Анкета!E$109","v":0},{"$f":"Анкета!E$110","v":0},{"$f":"Анкета!E$111","v":0},{"$f":"Анкета!E$112","v":0},{"$f":"Анкета!E$113","v":"Уровни энергоэффективности согласно методологии LEED"},{"$f":"Анкета!E$114","v":0},{"$f":"Анкета!$E$116","v":0},{"$f":"Анкета!$E$117","v":0},{"$f":"Анкета!$E$118","v":0},{"$f":"Анкета!$E$119","v":0},{"$f":"Анкета!$E$120","v":"Уровни энергоэффективности согласно методологии LEED"},{"$f":"Анкета!$E$121","v":0},{"$f":"Анкета!$E$123","v":0},{"$f":"Анкета!$E$124","v":0},{"$f":"Анкета!$E$125","v":"Уровни энергоэффективности согласно методологии LEED"},{"$f":"Анкета!$E$126","v":0},{"$f":"Анкета!$E$127","v":0},{"$f":"Анкета!$E$128","v":0},{"$f":"Анкета!$E$130","v":0},{"$f":"Анкета!$E$131","v":0},{"$f":"Анкета!$E$132","v":0},{"$f":"Анкета!$E$133","v":0},{"$f":"Анкета!$E$134","v":"Уровни энергоэффективности согласно методологии LEED"},{"$f":"Анкета!$E$135","v":0},{"$f":"Анкета!$E$136","v":0},{"$f":"Анкета!$E$137","v":0},{"$f":"Анкета!$E$146","v":0},{"$f":"Анкета!$E$147","v":0},{"$f":"Анкета!$E$148","v":0},{"$f":"Анкета!$E$149","v":0},{"$f":"Анкета!$E$150","v":"Уровни энергоэффективности согласно методологии LEED"},{"$f":"Анкета!$E$151","v":0},{"$f":"Анкета!E$153","v":0},{"$f":"Анкета!E$154","v":0},{"$f":"Анкета!E$155","v":"Уровни энергоэффективности согласно методологии LEED"},{"$f":"Анкета!E$156","v":0},{"$f":"Анкета!E$157","v":0},{"$f":"Анкета!$E$159","v":0},{"$f":"Анкета!$E$160","v":0},{"$f":"Анкета!$E$161","v":0},{"$f":"Анкета!$E$162","v":0},{"$f":"Анкета!E$171","v":0},{"$f":"Анкета!E$172","v":0},{"$f":"Анкета!E$173","v":0},{"$f":"Анкета!$E$174","v":"Уровни энергоэффективности согласно методологии LEED"},{"$f":"Анкета!$E$175","v":0},{"$f":"Анкета!$E$176","v":0},{"$f":"Анкета!$E$178","v":0},{"$f":"Анкета!$E$179","v":"Уровни энергоэффективности согласно методологии LEED"},{"$f":"Анкета!$E$180","v":0},{"$f":"Анкета!$E$181","v":0},{"$f":"Анкета!$E$182","v":0},{"$f":"Анкета!$E$184","v":0},{"$f":"Анкета!$E$185","v":"Уровни энергоэффективности согласно методологии LEED"},{"$f":"Анкета!$E$186","v":0},{"$f":"Анкета!$E$187","v":0},{"$f":"Анкета!$E$188","v":0},{"$f":"Анкета!$E$189","v":0},{"$f":"Анкета!$E$190","v":0},{"$f":"Анкета!$E$199","v":0},{"$f":"Анкета!$E$200","v":0},{"$f":"Анкета!$E$201","v":0},{"$f":"Анкета!$E$202","v":0},{"$f":"Анкета!$E$203","v":"Уровни энергоэффективности согласно методологии LEED"},{"$f":"Анкета!$E$204","v":0},{"$f":"Анкета!$E$205","v":0},{"$f":"Анкета!$E$207","v":0},{"$f":"Анкета!$E$208","v":0},{"$f":"Анкета!$E$209","v":0},{"$f":"Анкета!$E$210","v":"Уровни энергоэффективности согласно методологии LEED"},{"$f":"Анкета!$E$211","v":0},{"$f":"Анкета!$E$212","v":0},{"$f":"Анкета!E$214","v":0},{"$f":"Анкета!$E$215","v":0},{"$f":"Анкета!$E$216","v":0},{"$f":"Анкета!$E$217","v":0},{"$f":"Анкета!$E$218","v":"Уровни энергоэффективности согласно методологии LEED"},{"$f":"Анкета!$E$219","v":0},{"$f":"Анкета!$E$220","v":0},{"$f":"Анкета!$E$222","v":0},{"$f":"Анкета!$E$223","v":0},{"$f":"Анкета!$E$224","v":0},{"$f":"Анкета!$E$225","v":0},{"$f":"Анкета!$E$226","v":0},{"$f":"Анкета!$E$227","v":0},{"$f":"Анкета!$E$228","v":0},{"$f":"Анкета!E$237","v":0},{"$f":"Анкета!E$238","v":0},{"$f":"Анкета!E$239","v":0},{"$f":"Анкета!E$240","v":0},{"$f":"Анкета!E$241","v":"Уровни энергоэффективности согласно методологии LEED"},{"$f":"Анкета!E$242","v":0},{"$f":"Анкета!E$244","v":0},{"$f":"Анкета!E$245","v":0},{"$f":"Анкета!E$246","v":0},{"$f":"Анкета!E$247","v":0},{"$f":"Анкета!E$248","v":"Уровни энергоэффективности согласно методологии LEED"},{"$f":"Анкета!E$249","v":0},{"$f":"Анкета!$E$251","v":0},{"$f":"Анкета!$E$252","v":0},{"$f":"Анкета!$E$253","v":0},{"$f":"Анкета!$E$254","v":0},{"$f":"Анкета!$E$255","v":"Уровни энергоэффективности согласно методологии LEED"},{"$f":"Анкета!$E$256","v":0},{"$f":"Анкета!$E$257","v":0},{"$f":"Анкета!$E$258","v":0},{"$f":"Анкета!$E$267","v":0},{"$f":"Анкета!$E$268","v":0},{"$f":"Анкета!$E$269","v":"Уровни энергоэффективности согласно методологии LEED"},{"$f":"Анкета!$E$270","v":0},{"$f":"Анкета!$E$271","v":0},{"$f":"Анкета!$E$272","v":0},{"$f":"Анкета!$E$273","v":0}]
[null,{"$f":"Анкета!I$18","v":0},{"$f":"Анкета!I$19","v":0},{"$f":"Анкета!I$20","v":0},{"$f":"Анкета!I$21","v":0},{"$f":"Анкета!I$22","v":0},{"$f":"Анкета!I$23","v":0},{"$f":"Анкета!I$24","v":0},{"$f":"Анкета!I$25","v":0},{"$f":"Анкета!I$31","v":0},{"$f":"Анкета!I$42","v":0},{"$f":"Анкета!I$33","v":0},{"$f":"Анкета!I$34","v":0},{"$f":"Анкета!I$26","v":0},{"$f":"Анкета!I$27","v":0},{"$f":"Анкета!I$28","v":0},{"$f":"Анкета!I$29","v":0},{"$f":"Анкета!I$30","v":0},{"$f":"Анкета!I$32","v":0},{"$f":"Анкета!I$35","v":0},{"$f":"Анкета!I$36","v":0},{"$f":"Анкета!I$37","v":0},{"$f":"Анкета!I$38","v":0},{"$f":"Анкета!I$39","v":0},{"$f":"Анкета!I$40","v":0},{"$f":"Анкета!I$41","v":0},null,null,{"$f":"Анкета!I$51","v":0},{"$f":"Анкета!I$52","v":0},{"$f":"Анкета!I$53","v":0},{"$f":"Анкета!I$54","v":0},{"$f":"Анкета!I$55","v":0},{"$f":"Анкета!I$56","v":0},{"$f":"Анкета!I$58","v":0},{"$f":"Анкета!I$59","v":0},{"$f":"Анкета!I$60","v":0},{"$f":"Анкета!I$61","v":0},{"$f":"Анкета!I$62","v":0},{"$f":"Анкета!I$71","v":0},{"$f":"Анкета!I$72","v":0},{"$f":"Анкета!I$73","v":0},{"$f":"Анкета!I$74","v":0},{"$f":"Анкета!I$75","v":0},{"$f":"Анкета!I$76","v":0},{"$f":"Анкета!I$78","v":0},{"$f":"Анкета!I$79","v":0},{"$f":"Анкета!I82","v":0},{"$f":"Анкета!I$81","v":0},{"$f":"Анкета!I$82","v":0},{"$f":"Анкета!I$83","v":0},{"$f":"Анкета!I$85","v":0},{"$f":"Анкета!I$86","v":0},{"$f":"Анкета!I$87","v":0},{"$f":"Анкета!I$88","v":0},{"$f":"Анкета!I$89","v":0},{"$f":"Анкета!I$90","v":0},{"$f":"Анкета!I$91","v":0},{"$f":"Анкета!I$93","v":0},{"$f":"Анкета!I$94","v":0},{"$f":"Анкета!I$95","v":0},{"$f":"Анкета!I$96","v":0},{"$f":"Анкета!I$97","v":0},{"$f":"Анкета!I$98","v":0},{"$f":"Анкета!I$99","v":0},{"$f":"Анкета!I$100","v":0},{"$f":"Анкета!I$109","v":0},{"$f":"Анкета!I$110","v":0},{"$f":"Анкета!I$111","v":0},{"$f":"Анкета!I$112","v":0},{"$f":"Анкета!I$113","v":0},{"$f":"Анкета!I$114","v":0},{"$f":"Анкета!$I$116","v":0},{"$f":"Анкета!$I$117","v":0},{"$f":"Анкета!$I$118","v":0},{"$f":"Анкета!$I$119","v":0},{"$f":"Анкета!$I$120","v":0},{"$f":"Анкета!$I$121","v":0},{"$f":"Анкета!$I$123","v":0},{"$f":"Анкета!$I$124","v":0},{"$f":"Анкета!$I$125","v":0},{"$f":"Анкета!$I$126","v":0},{"$f":"Анкета!$I$127","v":0},{"$f":"Анкета!$I$128","v":0},{"$f":"Анкета!$I$130","v":0},{"$f":"Анкета!$I$131","v":0},{"$f":"Анкета!$I$132","v":0},{"$f":"Анкета!$I$133","v":0},{"$f":"Анкета!$I$134","v":0},{"$f":"Анкета!$I$135","v":0},{"$f":"Анкета!$I$136","v":0},{"$f":"Анкета!$I$137","v":0},{"$f":"Анкета!$I$146","v":0},{"$f":"Анкета!$I$147","v":0},{"$f":"Анкета!$I$148","v":0},{"$f":"Анкета!$I$149","v":0},{"$f":"Анкета!$I$150","v":0},{"$f":"Анкета!$I$151","v":0},{"$f":"Анкета!I$153","v":0},{"$f":"Анкета!I$154","v":0},{"$f":"Анкета!I$155","v":0},{"$f":"Анкета!I$156","v":0},{"$f":"Анкета!I$157","v":0},{"$f":"Анкета!$I$159","v":0},{"$f":"Анкета!$I$160","v":0},{"$f":"Анкета!$I$161","v":0},{"$f":"Анкета!$I$162","v":0},{"$f":"Анкета!I$171","v":0},{"$f":"Анкета!I$172","v":0},{"$f":"Анкета!I$173","v":0},{"$f":"Анкета!$I$174","v":0},{"$f":"Анкета!$I$175","v":0},{"$f":"Анкета!$I$176","v":0},{"$f":"Анкета!$I$178","v":0},{"$f":"Анкета!$I$179","v":0},{"$f":"Анкета!$I$180","v":0},{"$f":"Анкета!$I$181","v":0},{"$f":"Анкета!$I$182","v":0},{"$f":"Анкета!$I$184","v":0},{"$f":"Анкета!$I$185","v":0},{"$f":"Анкета!$I$186","v":0},{"$f":"Анкета!$I$187","v":0},{"$f":"Анкета!$I$188","v":0},{"$f":"Анкета!$I$189","v":0},{"$f":"Анкета!$I$190","v":0},{"$f":"Анкета!$I$199","v":0},{"$f":"Анкета!$I$200","v":0},{"$f":"Анкета!$I$201","v":0},{"$f":"Анкета!$I$202","v":0},{"$f":"Анкета!$I$203","v":0},{"$f":"Анкета!$I$204","v":0},{"$f":"Анкета!$I$205","v":0},{"$f":"Анкета!$I$207","v":0},{"$f":"Анкета!$I$208","v":0},{"$f":"Анкета!$I$209","v":0},{"$f":"Анкета!$I$210","v":0},{"$f":"Анкета!$I$211","v":0},{"$f":"Анкета!$I$212","v":0},{"$f":"Анкета!I$214","v":0},{"$f":"Анкета!$I$215","v":0},{"$f":"Анкета!$I$216","v":0},{"$f":"Анкета!$I$217","v":0},{"$f":"Анкета!$I$218","v":0},{"$f":"Анкета!$I$219","v":0},{"$f":"Анкета!$I$220","v":0},{"$f":"Анкета!$I$222","v":0},{"$f":"Анкета!$I$223","v":0},{"$f":"Анкета!$I$224","v":0},{"$f":"Анкета!$I$225","v":0},{"$f":"Анкета!$I$226","v":0},{"$f":"Анкета!$I$227","v":0},{"$f":"Анкета!$I$228","v":0},{"$f":"Анкета!I$237","v":0},{"$f":"Анкета!I$238","v":0},{"$f":"Анкета!I$239","v":0},{"$f":"Анкета!I$240","v":0},{"$f":"Анкета!I$241","v":0},{"$f":"Анкета!I$242","v":0},{"$f":"Анкета!I$244","v":0},{"$f":"Анкета!I$245","v":0},{"$f":"Анкета!I$246","v":0},{"$f":"Анкета!I$247","v":0},{"$f":"Анкета!I$248","v":0},{"$f":"Анкета!I$249","v":0},{"$f":"Анкета!$I$251","v":0},{"$f":"Анкета!$I$252","v":0},{"$f":"Анкета!$I$253","v":0},{"$f":"Анкета!$I$254","v":0},{"$f":"Анкета!$I$255","v":0},{"$f":"Анкета!$I$256","v":0},{"$f":"Анкета!$I$257","v":0},{"$f":"Анкета!$I$258","v":0},{"$f":"Анкета!$I$267","v":0},{"$f":"Анкета!$I$268","v":0},{"$f":"Анкета!$I$269","v":0},{"$f":"Анкета!$I$270","v":0},{"$f":"Анкета!$I$271","v":0},{"$f":"Анкета!$I$272","v":0},{"$f":"Анкета!$I$273","v":0}]
[null,{"$f":"Анкета!F$18","v":0},{"$f":"Анкета!F$19","v":0},{"$f":"Анкета!F$20","v":0},{"$f":"Анкета!F$21","v":0},{"$f":"Анкета!F$22","v":0},{"$f":"Анкета!F$23","v":0},{"$f":"Анкета!F$24","v":0},{"$f":"Анкета!F$25","v":0},{"$f":"Анкета!F$31","v":0},{"$f":"Анкета!F$42","v":0},{"$f":"Анкета!F$33","v":0},{"$f":"Анкета!F$34","v":0},{"$f":"Анкета!F$26","v":0},{"$f":"Анкета!F$27","v":0},{"$f":"Анкета!F$28","v":0},{"$f":"Анкета!F$29","v":0},{"$f":"Анкета!F$30","v":0},{"$f":"Анкета!F$32","v":0},{"$f":"Анкета!F$35","v":0},{"$f":"Анкета!F$36","v":0},{"$f":"Анкета!F$37","v":0},{"$f":"Анкета!F$38","v":0},{"$f":"Анкета!F$39","v":0},{"$f":"Анкета!F$40","v":0},{"$f":"Анкета!F$41","v":0},null,null,{"$f":"Анкета!F$51","v":0},{"$f":"Анкета!F$52","v":0},{"$f":"Анкета!F$53","v":0},{"$f":"Анкета!F$54","v":0},{"$f":"Анкета!F$55","v":0},{"$f":"Анкета!F$56","v":"Список технологий"},{"$f":"Анкета!F$58","v":0},{"$f":"Анкета!F$59","v":0},{"$f":"Анкета!F$60","v":0},{"$f":"Анкета!F$61","v":0},{"$f":"Анкета!F$62","v":0},{"$f":"Анкета!F$71","v":0},{"$f":"Анкета!F$72","v":0},{"$f":"Анкета!F$73","v":0},{"$f":"Анкета!F$74","v":0},{"$f":"Анкета!F$75","v":0},{"$f":"Анкета!F$76","v":"Список технологий"},{"$f":"Анкета!F$78","v":0},{"$f":"Анкета!F$79","v":0},{"$f":"Анкета!F81","v":0},{"$f":"Анкета!F$81","v":0},{"$f":"Анкета!F$82","v":0},{"$f":"Анкета!F$83","v":"Список технологий"},{"$f":"Анкета!F$85","v":0},{"$f":"Анкета!F$86","v":0},{"$f":"Анкета!F$87","v":0},{"$f":"Анкета!F$88","v":"Список технологий"},{"$f":"Анкета!F$89","v":"Список технологий"},{"$f":"Анкета!F$90","v":0},{"$f":"Анкета!F$91","v":"Список моногородов"},{"$f":"Анкета!F$93","v":0},{"$f":"Анкета!F$94","v":0},{"$f":"Анкета!F$95","v":0},{"$f":"Анкета!F$96","v":0},{"$f":"Анкета!F$97","v":0},{"$f":"Анкета!F$98","v":0},{"$f":"Анкета!F$99","v":0},{"$f":"Анкета!F$100","v":"Список технологий"},{"$f":"Анкета!F$109","v":0},{"$f":"Анкета!F$110","v":0},{"$f":"Анкета!F$111","v":0},{"$f":"Анкета!F$112","v":0},{"$f":"Анкета!F$113","v":0},{"$f":"Анкета!F$114","v":"Список технологий"},{"$f":"Анкета!$F$116","v":0},{"$f":"Анкета!$F$117","v":0},{"$f":"Анкета!$F$118","v":0},{"$f":"Анкета!$F$119","v":0},{"$f":"Анкета!$F$120","v":0},{"$f":"Анкета!$F$121","v":"Список технологий"},{"$f":"Анкета!$F$123","v":0},{"$f":"Анкета!$F$124","v":0},{"$f":"Анкета!$F$125","v":0},{"$f":"Анкета!$F$126","v":"Список технологий"},{"$f":"Анкета!$F$127","v":"Список технологий"},{"$f":"Анкета!$F$128","v":0},{"$f":"Анкета!$F$130","v":0},{"$f":"Анкета!$F$131","v":0},{"$f":"Анкета!$F$132","v":0},{"$f":"Анкета!$F$133","v":0},{"$f":"Анкета!$F$134","v":0},{"$f":"Анкета!$F$135","v":0},{"$f":"Анкета!$F$136","v":0},{"$f":"Анкета!$F$137","v":"Список технологий"},{"$f":"Анкета!$F$146","v":0},{"$f":"Анкета!$F$147","v":0},{"$f":"Анкета!$F$148","v":0},{"$f":"Анкета!$F$149","v":0},{"$f":"Анкета!$F$150","v":0},{"$f":"Анкета!$F$151","v":"Список технологий"},{"$f":"Анкета!F$153","v":0},{"$f":"Анкета!F$154","v":0},{"$f":"Анкета!F$155","v":0},{"$f":"Анкета!F$156","v":0},{"$f":"Анкета!F$157","v":"Список технологий"},{"$f":"Анкета!$F$159","v":0},{"$f":"Анкета!$F$160","v":0},{"$f":"Анкета!$F$161","v":0},{"$f":"Анкета!$F$162","v":"Список технологий"},{"$f":"Анкета!F$171","v":0},{"$f":"Анкета!F$172","v":0},{"$f":"Анкета!F$173","v":0},{"$f":"Анкета!$F$174","v":0},{"$f":"Анкета!$F$175","v":0},{"$f":"Анкета!$F$176","v":0},{"$f":"Анкета!$F$178","v":0},{"$f":"Анкета!$F$179","v":0},{"$f":"Анкета!$F$180","v":0},{"$f":"Анкета!$F$181","v":"Список технологий"},{"$f":"Анкета!$F$182","v":0},{"$f":"Анкета!$F$184","v":0},{"$f":"Анкета!$F$185","v":0},{"$f":"Анкета!$F$186","v":0},{"$f":"Анкета!$F$187","v":"Список технологий"},{"$f":"Анкета!$F$188","v":"Список технологий"},{"$f":"Анкета!$F$189","v":0},{"$f":"Анкета!$F$190","v":"Список моногородов"},{"$f":"Анкета!$F$199","v":0},{"$f":"Анкета!$F$200","v":0},{"$f":"Анкета!$F$201","v":0},{"$f":"Анкета!$F$202","v":0},{"$f":"Анкета!$F$203","v":0},{"$f":"Анкета!$F$204","v":0},{"$f":"Анкета!$F$205","v":"Список технологий"},{"$f":"Анкета!$F$207","v":0},{"$f":"Анкета!$F$208","v":0},{"$f":"Анкета!$F$209","v":0},{"$f":"Анкета!$F$210","v":0},{"$f":"Анкета!$F$211","v":0},{"$f":"Анкета!$F$212","v":"Список технологий"},{"$f":"Анкета!F$214","v":0},{"$f":"Анкета!$F$215","v":0},{"$f":"Анкета!$F$216","v":0},{"$f":"Анкета!$F$217","v":0},{"$f":"Анкета!$F$218","v":0},{"$f":"Анкета!$F$219","v":0},{"$f":"Анкета!$F$220","v":"Список технологий"},{"$f":"Анкета!$F$222","v":0},{"$f":"Анкета!$F$223","v":0},{"$f":"Анкета!$F$224","v":0},{"$f":"Анкета!$F$225","v":0},{"$f":"Анкета!$F$226","v":0},{"$f":"Анкета!$F$227","v":"Список технологий"},{"$f":"Анкета!$F$228","v":0},{"$f":"Анкета!F$237","v":0},{"$f":"Анкета!F$238","v":0},{"$f":"Анкета!F$239","v":0},{"$f":"Анкета!F$240","v":0},{"$f":"Анкета!F$241","v":0},{"$f":"Анкета!F$242","v":"Список технологий"},{"$f":"Анкета!F$244","v":0},{"$f":"Анкета!F$245","v":0},{"$f":"Анкета!F$246","v":0},{"$f":"Анкета!F$247","v":0},{"$f":"Анкета!F$248","v":0},{"$f":"Анкета!F$249","v":"Список технологий"},{"$f":"Анкета!$F$251","v":0},{"$f":"Анкета!$F$252","v":0},{"$f":"Анкета!$F$253","v":0},{"$f":"Анкета!$F$254","v":0},{"$f":"Анкета!$F$255","v":0},{"$f":"Анкета!$F$256","v":0},{"$f":"Анкета!$F$257","v":0},{"$f":"Анкета!$F$258","v":"Список технологий"},{"$f":"Анкета!$F$267","v":0},{"$f":"Анкета!$F$268","v":0},{"$f":"Анкета!$F$269","v":0},{"$f":"Анкета!$F$270","v":"Список технологий"},{"$f":"Анкета!$F$271","v":"Список технологий"},{"$f":"Анкета!$F$272","v":0},{"$f":"Анкета!$F$273","v":"Список моногородов"}]

{"sheet":"Tech","index":3,"n_rows":323,"n_cols":27,"rows_kept":323,"cut":false,"hidden":true,"merged":[]}
[]
[null,"Техническая таблица для коррректной работы макроса ",null,null,null,null,null,"Страны-члены ООН (в алфавитном порядке)","Список регионов РФ в алфавитном порядке",null,"Стадии реализации проекта",null,"Список национальных проектов",null,"Список экологичных технологий",null,"Список моногородов",null,"Список технологий",null,"Категории энергоэффективности",null,"Список ОЭЗ, ТОР и СПВ",null,"Список дорогостоющего оборудования для медицинских учреждений",null,"Уровни энергоэффективности согласно методологии LEED"]
[null,"Номер номинации","Номинация","Сфера","Form Controls","Name",null,"Другое (свой вариант)","Другое (свой вариант)",null,"предынвестиционная",null,"Эффективная и конкурентная экономика",null,"Оборудование на экологическом топливе (биотопливо, электричество, водород, метан, СПГ, КПГ, ВИЭ)",null,"г.Абаза",null,"Технологии создания высокоэффективных систем генерации, распределения и хранения энергии",null,"A++",null,"ОЭЗ «Усть-Луга»",null,"Система трубопроводная медицинских газов/вакуума",null,"Certified (простой)"]
[null,1,"Разработка и применение искусственного интеллекта","Создание и эксплуатация мощностей для работы ИИ",true,"Check1",null,"Абхазия","АЛТАЙСКИЙ КРАЙ",null,"инвестиционная",null,"Новые атомные и энергетические технологии",null,"Транспорт на экологическом топливе (биотопливо, электричество, водород, метан, СПГ, КПГ, ВИЭ)",null,"г.Алатырь",null,"Технологии создания энергетических систем с замкнутым топливным циклом",null,"A+",null,"ОЭЗ «Моглино»",null,"Система рентгеновской компьютерной томографии всего тела",null,"Silver (серебряный)"]
[null,1,"Разработка и применение искусственного интеллекта","Разработка продуктов в области ИИ",true,"Check2",null,"Австралия","АМУРСКАЯ ОБЛАСТЬ",null,"эксплуатационная",null,"Новые материалы и химия",null,"Инфраструктура для заправки наземного транспорта экологичным топливом (биотопливо, электричество, водород, метан, СПГ, КПГ, ВИЭ)",null,"г.Алейск",null,"Технологии создания новых материалов с заданными свойствами и эксплуатационными характеристиками",null,"A",null,"ОЭЗ «Новгородская»",null,"Система магнитно-резонансной томографии всего тела, со сверхпроводящим магнитом",null,"Gold (золотой)"]
[null,2,"Развитие Арктики и Дальнего Востока","Транспортная инфраструктура для грузоперевозок",true,"Check3",null,"Австрия","АРХАНГЕЛЬСКАЯ ОБЛАСТЬ",null,null,null,"Промышленное обеспечение транспортной мобильности",null,"Инфраструктура для бункеровки судов экологичным топливом ( биотопливо, электротопливо, метанол, СУГ, СПГ, аммиак, водород)",null,"г.Александровск",null,"Технологии космического приборостроения для развития современных систем связи, навигации и дистанционного зондирования Земли",null,"B",null,"ОЭЗ «Эммаусс»",null,"Система ангиографическая рентгеновская стационарная, цифровая",null,"Platinum (платиновый)"]
[null,2,"Развитие Арктики и Дальнего Востока","Транспортная инфраструктура для пассажирских перевозок",true,"Check4",null,"Азербайджан","АСТРАХАНСКАЯ ОБЛАСТЬ",null,null,null,"Средства производства и автоматизации",null,"Инфраструктура для перевалки или хранения пыльных грузов \"закрытым способом\"",null,"г.Алексин",null,"Технологическое обеспечение продовольственной безопасности",null,"C",null,"ОЭЗ «Стабна»",null,"Анализатор масс-спектрометрический ИВД"]
[null,2,"Развитие Арктики и Дальнего Востока","Производственная инфраструктура",true,"Check5",null,"Албания","БЕЛГОРОДСКАЯ ОБЛАСТЬ",null,null,null,"Технологическое обеспечение продовольственной безопасности",null,null,null,"г.Анжеро-Судженск",null,"Технологии искусственного интеллекта, виртуальной и дополненной реальности",null,"D",null,"ОЭЗ «Ступино Квадрат»",null,"Система электромеханическая для литотрипсии, экстракорпоральная"]
[null,2,"Развитие Арктики и Дальнего Востока","Энергетика",true,"Check6",null,"Алжир","БРЯНСКАЯ ОБЛАСТЬ",null,null,null,"Технологическое обеспечение биоэкономики",null,null,null,"г.Армянск",null,"Технологии микроэлектроники и фотоники для систем хранения, обработки, передачи и защиты информации",null,"E",null,"ОЭЗ «Кашира»",null,"Система хирургическая роботизированная"]
[null,3,"Международная кооперация и импортозамещение","Транспортная инфраструктура для грузоперевозок",true,"Check7",null,"Ангола","ВЛАДИМИРСКАЯ ОБЛАСТЬ",null,null,null,"Развитие космической деятельности",null,null,null,"г.Арсеньев",null,"Технологии защищенных квантовых систем передачи данных",null,"F",null,"ОЭЗ «Калуга»",null,"Конструкции модульные для чистых помещений"]
[null,3,"Международная кооперация и импортозамещение","Транспортная инфраструктура для пассажирских перевозок",true,"Check8",null,"Андорра","ВОЛГОГРАДСКАЯ ОБЛАСТЬ",null,null,null,"Экономика данных и цифровая трансформация государства",null,null,null,"г.Асбест",null,"Биомедицинские и когнитивные технологии здорового и активного долголетия.",null,"G",null,"ОЭЗ «Доброград-1»",null,"Система лазерная офтальмологическая фемтосекундная твердотельная"]
[null,3,"Международная кооперация и импортозамещение","Производственная инфраструктура",true,"Check23",null,"Антигуа и Барбуда","ВОЛОГОДСКАЯ ОБЛАСТЬ",null,null,null,"Молодёжь и дети",null,null,null,"г.Аша",null,"Технологии разработки лекарственных средств и платформ нового поколения (биотехнологических, высокотехнологичных и радиофармацевтических лекарственных препаратов)",null,null,null,"ОЭЗ «Третий полюс»",null,"Система линейного ускорителя для радиохирургии/лучевой терапии стереотаксическая"]
[null,3,"Международная кооперация и импортозамещение","Энергетика",true,"Check24",null,"Аргентина","ВОРОНЕЖСКАЯ ОБЛАСТЬ",null,null,null,"Кадры",null,null,null,"г.Байкальск",null,"Технологии персонализированного, лечебного и функционального питания для здоровьесбережения",null,null,null,"ОЭЗ «Орел»",null,"Система для брахитерапии с дистанционной загрузкой радионуклидного источника"]
[null,4,"Образование XXI века","Высшее образование / СПО",true,"Check9",null,"Армения","ДОНЕЦКАЯ НАРОДНАЯ РЕСПУБЛИКА",null,null,null,"Новые технологии сбережения здоровья",null,null,null,"г.Бакал",null,"Технологии разработки медицинских изделий нового поколения, включая биогибридные, бионические технологии и нейротехно логии",null,null,null,"ОЭЗ «Узловая»",null,"Иное оборудование, стоимостью свыше 50 млн руб. по \"Результатам мониторинга и анализа цен на медицинские изделия от X.2025\" Федеральной службы по надзору в сфере здравоохранения "]
[null,4,"Образование XXI века","Среднее общее образование",true,"Check10",null,"Афганистан","ЕВРЕЙСКАЯ АВТОНОМНАЯ ОБЛАСТЬ",null,null,null,"Продолжительная и активная жизнь",null,null,null,"г.Балахна",null,"Беспилотные и автономные системы в транспорте",null,null,null,"ОЭЗ «Максимиха»"]
[null,4,"Образование XXI века","Онлайн платформы",true,"Check21",null,"Багамские Острова","ЗАБАЙКАЛЬСКИЙ КРАЙ",null,null,null,"Экологическое благополучие",null,null,null,"г.Белая Холуница",null,null,null,null,null,"ОЭЗ «Иваново»"]
[null,5,"Здоровье нации","Медицинские учреждения",true,"Check11",null,"Бангладеш","ЗАПОРОЖСКАЯ ОБЛАСТЬ",null,null,null,"Семья",null,null,null,"г.Белебей",null,null,null,null,null,"ОЭЗ «Владимир»"]
[null,5,"Здоровье нации","Производство медицинских препаратов",true,"Check12",null,"Барбадос","ИВАНОВСКАЯ ОБЛАСТЬ",null,null,null,"Эффективная транспортная система",null,null,null,"г.Белев",null,null,null,null,null,"ОЭЗ «Липецк»"]
[null,5,"Здоровье нации","Производство медицинского оборудования",true,"Check13",null,"Бахрейн","ИРКУТСКАЯ ОБЛАСТЬ",null,null,null,"Беспилотные авиационные системы",null,null,null,"г.Белово",null,null,null,null,null,"ОЭЗ «Кулибин»"]
[null,6,"Качественная городская среда","Жилищное строительство",true,"Check14",null,"Беларусь","КАБАРДИНО-БАЛКАРСКАЯ РЕСПУБЛИКА",null,null,null,"Инфраструктура для жизни",null,null,null,"г.Белорецк",null,null,null,null,null,"ОЭЗ «Центр»"]
[null,6,"Качественная городская среда","Транспортная инфраструктура",true,"Check15",null,"Белиз","КАЛИНИНГРАДСКАЯ ОБЛАСТЬ",null,null,null,"Туризм и гостеприимство",null,null,null,"г.Березовский",null,null,null,null,null,"ОЭЗ «Система»"]
[null,6,"Качественная городская среда","Жилищно-коммунальная инфраструктура",true,"Check16",null,"Бельгия","КАЛУЖСКАЯ ОБЛАСТЬ",null,null,null,"Международная кооперация и экспорт",null,null,null,"г.Благовещенск",null,null,null,null,null,"ОЭЗ «Новочебоксарск»"]
[null,6,"Качественная городская среда","Сохранение исторического облика города",true,"Check17",null,"Бенин","КАМЧАТСКИЙ КРАЙ",null,null,null,null,null,null,null,"г.Боровичи",null,null,null,null,null,"ОЭЗ «Алабуга»"]
[null,7,"Инфраструктурный каркас страны","Транспортная инфраструктура для грузоперевозок",true,"Check18",null,"Болгария","КАРАЧАЕВО-ЧЕРКЕССКАЯ РЕСПУБЛИКА",null,null,null,null,null,null,null,"г.Бородино",null,null,null,null,null,"ОЭЗ «Пермь»"]
[null,7,"Инфраструктурный каркас страны","Транспортная инфраструктура для пассажирских перевозок",true,"Check19",null,"Боливия","КЕМЕРОВСКАЯ ОБЛАСТЬ - КУЗБАСС",null,null,null,null,null,null,null,"г.Верхний Уфалей",null,null,null,null,null,"ОЭЗ «Нягань»"]
[null,7,"Инфраструктурный каркас страны","Энергетика",true,"Check22",null,"Босния и Герцеговина","КИРОВСКАЯ ОБЛАСТЬ",null,null,null,null,null,null,null,"г.Верхняя Пышма",null,null,null,null,null,"ОЭЗ «Ростовская»"]
[null,8,"Технологическое лидерство","Производственная инфраструктура",true,"Check20",null,"Ботсвана","КОСТРОМСКАЯ ОБЛАСТЬ",null,null,null,null,null,null,null,"г.Верхняя Салда",null,null,null,null,null,"ОЭЗ «Химпром»"]
[null,null,null,null,null,null,null,"Бразилия","КРАСНОДАРСКИЙ КРАЙ",null,null,null,null,null,null,null,"г.Верхняя Тура",null,null,null,null,null,"ОЭЗ «Тольятти»"]
[null,null,null,null,null,null,null,"Бруней","КРАСНОЯРСКИЙ КРАЙ",null,null,null,null,null,null,null,"г.Вичуга",null,null,null,null,null,"ОЭЗ «Титановая долина»"]
[null,null,null,null,null,null,null,"Буркина-Фасо","КУРГАНСКАЯ ОБЛАСТЬ",null,null,null,null,null,null,null,"г.Володарск",null,null,null,null,null,"ОЭЗ «Алга»"]
[null,null,null,null,null,null,null,"Бурунди","КУРСКАЯ ОБЛАСТЬ",null,null,null,null,null,null,null,"г.Волчанск",null,null,null,null,null,"ОЭЗ «Лотос»"]
[null,null,null,null,null,null,null,"Бутан","ЛЕНИНГРАДСКАЯ ОБЛАСТЬ",null,null,null,null,null,null,null,"г.Вольск",null,null,null,null,null,"ОЭЗ «Грозный»"]
[null,null,null,null,null,null,null,"Вануату","ЛИПЕЦКАЯ ОБЛАСТЬ",null,null,null,null,null,null,null,"г.Воркута",null,null,null,null,null,"ОЭЗ «Оренбуржье»"]
[null,null,null,null,null,null,null,"Ватикан (Святой Престол)","ЛУГАНСКАЯ НАРОДНАЯ РЕСПУБЛИКА",null,null,null,null,null,null,null,"г.Ворсма",null,null,null,null,null,"ОЭЗ «Авангард»"]
[null,null,null,null,null,null,null,"Великобритания","МАГАДАНСКАЯ ОБЛАСТЬ",null,null,null,null,null,null,null,"г.Воткинск",null,null,null,null,null,"ОЭЗ «Кузбасс»"]
[null,null,null,null,null,null,null,"Венгрия","МОСКВА",null,null,null,null,null,null,null,"г.Выкса",null,null,null,null,null,"ОЭЗ «Красноярская технологическая долина»"]
[null,null,null,null,null,null,null,"Венесуэла","МОСКОВСКАЯ ОБЛАСТЬ",null,null,null,null,null,null,null,"г.Вязники",null,null,null,null,null,"ОЭЗ «Архыз»"]
[null,null,null,null,null,null,null,"Вьетнам","МУРМАНСКАЯ ОБЛАСТЬ",null,null,null,null,null,null,null,"г.Вятские Поляны",null,null,null,null,null,"ОЭЗ «Эльбрус»"]
[null,null,null,null,null,null,null,"Габон","НЕНЕЦКИЙ АВТОНОМНЫЙ ОКРУГ",null,null,null,null,null,null,null,"г.Гаврилов-Ям",null,null,null,null,null,"ОЭЗ «Мамисон»"]
[null,null,null,null,null,null,null,"Гаити","НИЖЕГОРОДСКАЯ ОБЛАСТЬ",null,null,null,null,null,null,null,"г.Гай",null,null,null,null,null,"ОЭЗ «Армхи и Цори»"]
[null,null,null,null,null,null,null,"Гайана","НОВГОРОДСКАЯ ОБЛАСТЬ",null,null,null,null,null,null,null,"г.Галич",null,null,null,null,null,"ОЭЗ «Матлас»"]
[null,null,null,null,null,null,null,"Гамбия","НОВОСИБИРСКАЯ ОБЛАСТЬ",null,null,null,null,null,null,null,"г.Глазов",null,null,null,null,null,"ОЭЗ «Ведучи»"]
[null,null,null,null,null,null,null,"Гана","ОМСКАЯ ОБЛАСТЬ",null,null,null,null,null,null,null,"г.Горнозаводск",null,null,null,null,null,"ОЭЗ «Завидово»"]
[null,null,null,null,null,null,null,"Гватемала","ОРЕНБУРГСКАЯ ОБЛАСТЬ",null,null,null,null,null,null,null,"г.Гороховец",null,null,null,null,null,"ОЭЗ «Бирюзовая Катунь»"]
[null,null,null,null,null,null,null,"Гвинея","ОРЛОВСКАЯ ОБЛАСТЬ",null,null,null,null,null,null,null,"г.Губкин",null,null,null,null,null,"ОЭЗ «Ворота Байкала»"]
[null,null,null,null,null,null,null,"Гвинея-Бисау","ПЕНЗЕНСКАЯ ОБЛАСТЬ",null,null,null,null,null,null,null,"г.Гуково",null,null,null,null,null,"ОЭЗ «Байкальская гавань»"]
[null,null,null,null,null,null,null,"Германия","ПЕРМСКИЙ КРАЙ",null,null,null,null,null,null,null,"г.Гурьевск",null,null,null,null,null,"ОЭЗ «Санкт-Петербург»"]
[null,null,null,null,null,null,null,"Гондурас","ПРИМОРСКИЙ КРАЙ",null,null,null,null,null,null,null,"г.Гусиноозерск",null,null,null,null,null,"ОЭЗ «Дубна»"]
[null,null,null,null,null,null,null,"Гренада","ПСКОВСКАЯ ОБЛАСТЬ",null,null,null,null,null,null,null,"г.Дагестанские Огни",null,null,null,null,null,"ОЭЗ «Исток»"]
[null,null,null,null,null,null,null,"Греция","РЕСПУБЛИКА АДЫГЕЯ",null,null,null,null,null,null,null,"г.Далматово",null,null,null,null,null,"ОЭЗ «Технополис “Москва”»"]
[null,null,null,null,null,null,null,"Грузия","РЕСПУБЛИКА АЛТАЙ",null,null,null,null,null,null,null,"г.Дальнегорск",null,null,null,null,null,"ОЭЗ «Иннополис»"]
[null,null,null,null,null,null,null,"Дания","РЕСПУБЛИКА БАШКОРТОСТАН",null,null,null,null,null,null,null,"г.Димитровград",null,null,null,null,null,"ОЭЗ «Саратов»"]
[null,null,null,null,null,null,null,"Демократическая Республика Конго","РЕСПУБЛИКА БУРЯТИЯ",null,null,null,null,null,null,null,"г.Донецк",null,null,null,null,null,"ОЭЗ «Томск»"]
[null,null,null,null,null,null,null,"Джибути","РЕСПУБЛИКА ДАГЕСТАН",null,null,null,null,null,null,null,"г.Дорогобуж",null,null,null,null,null,"ОЭЗ «Ульяновск»"]
[null,null,null,null,null,null,null,"Доминика","РЕСПУБЛИКА ИНГУШЕТИЯ",null,null,null,null,null,null,null,"г.Елабуга",null,null,null,null,null,"ОЭЗ «Оля»"]
[null,null,null,null,null,null,null,"Доминиканская Республика","РЕСПУБЛИКА КАЛМЫКИЯ",null,null,null,null,null,null,null,"г.Емва",null,null,null,null,null,"ТОР Амуро-Хинганская"]
[null,null,null,null,null,null,null,"Египет","РЕСПУБЛИКА КАРЕЛИЯ",null,null,null,null,null,null,null,"г.Ермолино",null,null,null,null,null,"ТОР Столица Севера"]
[null,null,null,null,null,null,null,"Замбия","РЕСПУБЛИКА КОМИ",null,null,null,null,null,null,null,"г.Ефремов",null,null,null,null,null,"ТОР Амурская"]
[null,null,null,null,null,null,null,"Зимбабве","РЕСПУБЛИКА КРЫМ",null,null,null,null,null,null,null,"г.Железногорск",null,null,null,null,null,"ТОР Большой Камень"]
[null,null,null,null,null,null,null,"Израиль","РЕСПУБЛИКА МАРИЙ ЭЛ",null,null,null,null,null,null,null,"г.Железногорск",null,null,null,null,null,"ТОР Бурятия"]
[null,null,null,null,null,null,null,"Индия","РЕСПУБЛИКА МОРДОВИЯ",null,null,null,null,null,null,null,"г.Железногорск-Илимский",null,null,null,null,null,"ТОР Сахалин"]
[null,null,null,null,null,null,null,"Индонезия","РЕСПУБЛИКА САХА (ЯКУТИЯ)",null,null,null,null,null,null,null,"г.Заволжье",null,null,null,null,null,"ТОР Забайкалье"]
[null,null,null,null,null,null,null,"Иордания","РЕСПУБЛИКА СЕВЕРНАЯ ОСЕТИЯ - АЛАНИЯ",null,null,null,null,null,null,null,"г.Закаменск",null,null,null,null,null,"ТОР Камчатка"]
[null,null,null,null,null,null,null,"Ирак","РЕСПУБЛИКА ТАТАРСТАН",null,null,null,null,null,null,null,"г.Западная Двина",null,null,null,null,null,"ТОР Краснокаменск"]
[null,null,null,null,null,null,null,"Иран","РЕСПУБЛИКА ТЫВА",null,null,null,null,null,null,null,"г.Заполярный",null,null,null,null,null,"ТОР Курилы"]
[null,null,null,null,null,null,null,"Ирландия","РЕСПУБЛИКА ХАКАСИЯ",null,null,null,null,null,null,null,"г.Заречный",null,null,null,null,null,"ТОР Михайловский"]
[null,null,null,null,null,null,null,"Исландия","РОСТОВСКАЯ ОБЛАСТЬ",null,null,null,null,null,null,null,"г.Заринск",null,null,null,null,null,"ТОР Находка"]
[null,null,null,null,null,null,null,"Испания","РЯЗАНСКАЯ ОБЛАСТЬ",null,null,null,null,null,null,null,"г.Зверево",null,null,null,null,null,"ТОР Приморье"]
[null,null,null,null,null,null,null,"Италия","САМАРСКАЯ ОБЛАСТЬ",null,null,null,null,null,null,null,"г.Зеленогорск",null,null,null,null,null,"ТОР Столица Арктики"]
[null,null,null,null,null,null,null,"Йемен","САНКТ-ПЕТЕРБУРГ",null,null,null,null,null,null,null,"г.Зеленодольск",null,null,null,null,null,"ТОР Хабаровск"]
[null,null,null,null,null,null,null,"Кабо-Верде","САРАТОВСКАЯ ОБЛАСТЬ",null,null,null,null,null,null,null,"г.Златоуст",null,null,null,null,null,"ТОР Чукотка"]
[null,null,null,null,null,null,null,"Казахстан","САХАЛИНСКАЯ ОБЛАСТЬ",null,null,null,null,null,null,null,"г.Инза",null,null,null,null,null,"ТОР Южная Якутия"]
[null,null,null,null,null,null,null,"Камбоджа","СВЕРДЛОВСКАЯ ОБЛАСТЬ",null,null,null,null,null,null,null,"г.Инта",null,null,null,null,null,"ТОР Якутия"]
[null,null,null,null,null,null,null,"Камерун","СЕВАСТОПОЛЬ",null,null,null,null,null,null,null,"г.Калтан",null,null,null,null,null,"Свободный Порт Владивосток"]
[null,null,null,null,null,null,null,"Канада","СМОЛЕНСКАЯ ОБЛАСТЬ",null,null,null,null,null,null,null,"г.Каменск-Уральский"]
[null,null,null,null,null,null,null,"Катар","СТАВРОПОЛЬСКИЙ КРАЙ",null,null,null,null,null,null,null,"г.Камешково"]
[null,null,null,null,null,null,null,"Кения","ТАМБОВСКАЯ ОБЛАСТЬ",null,null,null,null,null,null,null,"г.Канаш"]
[null,null,null,null,null,null,null,"Кипр","ТВЕРСКАЯ ОБЛАСТЬ",null,null,null,null,null,null,null,"г.Карабаш"]
[null,null,null,null,null,null,null,"Кирибати","ТОМСКАЯ ОБЛАСТЬ",null,null,null,null,null,null,null,"г.Карачев"]
[null,null,null,null,null,null,null,"Китай","ТУЛЬСКАЯ ОБЛАСТЬ",null,null,null,null,null,null,null,"г.Карпинск"]
[null,null,null,null,null,null,null,"КНДР","ТЮМЕНСКАЯ ОБЛАСТЬ",null,null,null,null,null,null,null,"г.Каспийск"]
[null,null,null,null,null,null,null,"Колумбия","УДМУРТСКАЯ РЕСПУБЛИКА",null,null,null,null,null,null,null,"г.Катайск"]
[null,null,null,null,null,null,null,"Коморы","УЛЬЯНОВСКАЯ ОБЛАСТЬ",null,null,null,null,null,null,null,"г.Качканар"]
[null,null,null,null,null,null,null,"Коста-Рика","ХАБАРОВСКИЙ КРАЙ",null,null,null,null,null,null,null,"г.Кимовск"]
[null,null,null,null,null,null,null,"Кот-д’Ивуар","ХАНТЫ-МАНСИЙСКИЙ АВТОНОМНЫЙ ОКРУГ — ЮГРА",null,null,null,null,null,null,null,"г.Кирово-Чепецк"]
[null,null,null,null,null,null,null,"Куба","ХЕРСОНСКАЯ ОБЛАСТЬ",null,null,null,null,null,null,null,"г.Кировск"]
[null,null,null,null,null,null,null,"Кувейт","ЧЕЛЯБИНСКАЯ ОБЛАСТЬ",null,null,null,null,null,null,null,"г.Кирс"]
[null,null,null,null,null,null,null,"Кыргызстан","ЧЕЧЕНСКАЯ РЕСПУБЛИКА",null,null,null,null,null,null,null,"г.Киселевск"]
[null,null,null,null,null,null,null,"Лаос","ЧУВАШСКАЯ РЕСПУБЛИКА",null,null,null,null,null,null,null,"г.Клинцы"]
[null,null,null,null,null,null,null,"Латвия","ЧУКОТСКИЙ АВТОНОМНЫЙ ОКРУГ",null,null,null,null,null,null,null,"г.Княгинино"]
[null,null,null,null,null,null,null,"Лесото","ЯМАЛО-НЕНЕЦКИЙ АВТОНОМНЫЙ ОКРУГ",null,null,null,null,null,null,null,"г.Ковдор"]
[null,null,null,null,null,null,null,"Либерия","ЯРОСЛАВСКАЯ ОБЛАСТЬ",null,null,null,null,null,null,null,"г.Козьмодемьянск"]
[null,null,null,null,null,null,null,"Ливан",null,null,null,null,null,null,null,null,"г.Кольчугино"]
[null,null,null,null,false,null,null,"Ливия",null,null,null,null,null,null,null,null,"г.Кондопога"]
[null,null,null,null,null,null,null,"Литва",null,null,null,null,null,null,null,null,"г.Кондрово"]
[null,null,null,null,null,null,null,"Лихтенштейн",null,null,null,null,null,null,null,null,"г.Коряжма"]
[null,null,null,null,null,null,null,"Люксембург",null,null,null,null,null,null,null,null,"г.Костомукша"]
[null,null,null,null,null,null,null,"Маврикий",null,null,null,null,null,null,null,null,"г.Котовск"]
[null,null,null,null,null,null,null,"Мавритания",null,null,null,null,null,null,null,null,"г.Красавино"]
[null,null,null,null,null,null,null,"Мадагаскар",null,null,null,null,null,null,null,null,"г.Красновишерск"]
[null,null,null,null,null,null,null,"Македония (Северная)",null,null,null,null,null,null,null,null,"г.Краснокаменск"]
[null,null,null,null,null,null,null,"Малави",null,null,null,null,null,null,null,null,"г.Красноперекопск"]
[null,null,null,null,null,null,null,"Малайзия",null,null,null,null,null,null,null,null,"г.Краснотурьинск"]
[null,null,null,null,null,null,null,"Мали",null,null,null,null,null,null,null,null,"г.Красноуральск"]
[null,null,null,null,null,null,null,"Мальдивы",null,null,null,null,null,null,null,null,"г.Кувандык"]
[null,null,null,null,null,null,null,"Мальта",null,null,null,null,null,null,null,null,"г.Кувшиново"]
[null,null,null,null,null,null,null,"Марокко",null,null,null,null,null,null,null,null,"г.Кулебаки"]
[null,null,null,null,null,null,null,"Маршалловы Острова",null,null,null,null,null,null,null,null,"г.Кумертау"]
[null,null,null,null,null,null,null,"Мексика",null,null,null,null,null,null,null,null,"г.Курлово"]
[null,null,null,null,null,null,null,"Микронезия",null,null,null,null,null,null,null,null,"г.Лахденпохья"]
[null,null,null,null,null,null,null,"Мозамбик",null,null,null,null,null,null,null,null,"г.Лебедянь"]
[null,null,null,null,null,null,null,"Молдавия",null,null,null,null,null,null,null,null,"г.Ленинск-Кузнецкий"]
[null,null,null,null,null,null,null,"Монако",null,null,null,null,null,null,null,null,"г.Лесосибирск"]
[null,null,null,null,null,null,null,"Монголия",null,null,null,null,null,null,null,null,"г.Луза"]
[null,null,null,null,null,null,null,"Мьянма",null,null,null,null,null,null,null,null,"г.Магнитогорск"]
[null,null,null,null,null,null,null,"Намибия",null,null,null,null,null,null,null,null,"г.Мантурово"]
[null,null,null,null,null,null,null,"Науру",null,null,null,null,null,null,null,null,"г.Мариинск"]
[null,null,null,null,null,null,null,"Непал",null,null,null,null,null,null,null,null,"г.Мариинский Посад"]
[null,null,null,null,null,null,null,"Нигер",null,null,null,null,null,null,null,null,"г.Медногорск"]
[null,null,null,null,null,null,null,"Нигерия",null,null,null,null,null,null,null,null,"г.Междуреченск"]
[null,null,null,null,null,null,null,"Нидерланды",null,null,null,null,null,null,null,null,"г.Меленки"]
[null,null,null,null,null,null,null,"Никарагуа",null,null,null,null,null,null,null,null,"г.Менделеевск"]
[null,null,null,null,null,null,null,"Новая Зеландия",null,null,null,null,null,null,null,null,"г.Миасс"]
[null,null,null,null,null,null,null,"Норвегия",null,null,null,null,null,null,null,null,"г.Миньяр"]
[null,null,null,null,null,null,null,"Объединённые Арабские Эмираты",null,null,null,null,null,null,null,null,"г.Мирный"]
[null,null,null,null,null,null,null,"Оман",null,null,null,null,null,null,null,null,"г.Михайловка"]
[null,null,null,null,null,null,null,"Пакистан",null,null,null,null,null,null,null,null,"г.Мончегорск"]
[null,null,null,null,null,null,null,"Палау",null,null,null,null,null,null,null,null,"г.Мценск"]
[null,null,null,null,null,null,null,"Палестина",null,null,null,null,null,null,null,null,"г.Мыски"]
[null,null,null,null,null,null,null,"Панама",null,null,null,null,null,null,null,null,"г.Набережные Челны"]
[null,null,null,null,null,null,null,"Папуа — Новая Гвинея",null,null,null,null,null,null,null,null,"г.Навашино"]
[null,null,null,null,null,null,null,"Парагвай",null,null,null,null,null,null,null,null,"г.Наволоки"]
[null,null,null,null,null,null,null,"Перу",null,null,null,null,null,null,null,null,"г.Невинномысск"]
[null,null,null,null,null,null,null,"Польша",null,null,null,null,null,null,null,null,"г.Нерюнгри"]
[null,null,null,null,null,null,null,"Португалия",null,null,null,null,null,null,null,null,"г.Нефтекамск"]
[null,null,null,null,null,null,null,"Республика Конго",null,null,null,null,null,null,null,null,"г.Нижнекамск"]
[null,null,null,null,null,null,null,"Республика Корея",null,null,null,null,null,null,null,null,"г.Нижний Тагил"]
[null,null,null,null,null,null,null,"Республика Молдова",null,null,null,null,null,null,null,null,"г.Никольск"]
[null,null,null,null,null,null,null,"Россия",null,null,null,null,null,null,null,null,"г.Новоалтайск"]
[null,null,null,null,null,null,null,"Руанда",null,null,null,null,null,null,null,null,"г.Новодвинск"]
[null,null,null,null,null,null,null,"Румыния",null,null,null,null,null,null,null,null,"г.Новокузнецк"]
[null,null,null,null,null,null,null,"Сальвадор",null,null,null,null,null,null,null,null,"г.Новокуйбышевск"]
[null,null,null,null,null,null,null,"Самоа",null,null,null,null,null,null,null,null,"г.Новомичуринск"]
[null,null,null,null,null,null,null,"Сан-Марино",null,null,null,null,null,null,null,null,"г.Новотроицк"]
[null,null,null,null,null,null,null,"Сан-Томе и Принсипи",null,null,null,null,null,null,null,null,"г.Новоульяновск"]
[null,null,null,null,null,null,null,"Саудовская Аравия",null,null,null,null,null,null,null,null,"г.Новочебоксарск"]
[null,null,null,null,null,null,null,"Северная Македония",null,null,null,null,null,null,null,null,"г.Норильск"]
[null,null,null,null,null,null,null,"Сейшелы",null,null,null,null,null,null,null,null,"г.Нытва"]
[null,null,null,null,null,null,null,"Сенегал",null,null,null,null,null,null,null,null,"г.Нязепетровск"]
[null,null,null,null,null,null,null,"Сент-Винсент и Гренадины",null,null,null,null,null,null,null,null,"г.Озерск"]
[null,null,null,null,null,null,null,"Сент-Китс и Невис",null,null,null,null,null,null,null,null,"г.Оленегорск"]
[null,null,null,null,null,null,null,"Сент-Люсия",null,null,null,null,null,null,null,null,"г.Омутнинск"]
[null,null,null,null,null,null,null,"Сербия",null,null,null,null,null,null,null,null,"г.Онега"]
[null,null,null,null,null,null,null,"Сингапур",null,null,null,null,null,null,null,null,"г.Осинники"]
[null,null,null,null,null,null,null,"Сирийская Арабская Республика",null,null,null,null,null,null,null,null,"г.Очер"]
[null,null,null,null,null,null,null,"Словакия",null,null,null,null,null,null,null,null,"г.Павлово"]
[null,null,null,null,null,null,null,"Словения",null,null,null,null,null,null,null,null,"г.Павловск"]
[null,null,null,null,null,null,null,"Соломоновы Острова",null,null,null,null,null,null,null,null,"г.Первомайск"]
[null,null,null,null,null,null,null,"Сомали",null,null,null,null,null,null,null,null,"г.Первоуральск"]
[null,null,null,null,null,null,null,"Судан",null,null,null,null,null,null,null,null,"г.Пестово"]
[null,null,null,null,null,null,null,"Суринам",null,null,null,null,null,null,null,null,"г.Петровск"]
[null,null,null,null,null,null,null,"США",null,null,null,null,null,null,null,null,"г.Петухово"]
[null,null,null,null,null,null,null,"Сьерра-Леоне",null,null,null,null,null,null,null,null,"г.Печоры"]
[null,null,null,null,null,null,null,"Таджикистан",null,null,null,null,null,null,null,null,"г.Пикалево"]
[null,null,null,null,null,null,null,"Таиланд",null,null,null,null,null,null,null,null,"г.Питкяранта"]
[null,null,null,null,null,null,null,"Танзания",null,null,null,null,null,null,null,null,"г.Полевской"]
[null,null,null,null,null,null,null,"Тимор-Лесте",null,null,null,null,null,null,null,null,"г.Полысаево"]
[null,null,null,null,null,null,null,"Того",null,null,null,null,null,null,null,null,"г.Приволжск"]
[null,null,null,null,null,null,null,"Тонга",null,null,null,null,null,null,null,null,"г.Прокопьевск"]
[null,null,null,null,null,null,null,"Тринидад и Тобаго",null,null,null,null,null,null,null,null,"г.Пудож"]
[null,null,null,null,null,null,null,"Тувалу",null,null,null,null,null,null,null,null,"г.Райчихинск"]
[null,null,null,null,null,null,null,"Тунис",null,null,null,null,null,null,null,null,"г.Ревда"]
[null,null,null,null,null,null,null,"Туркменистан",null,null,null,null,null,null,null,null,"г.Россошь"]
[null,null,null,null,null,null,null,"Турция",null,null,null,null,null,null,null,null,"г.Ростов"]
[null,null,null,null,null,null,null,"Уганда",null,null,null,null,null,null,null,null,"г.Рузаевка"]
[null,null,null,null,null,null,null,"Узбекистан",null,null,null,null,null,null,null,null,"г.Салаир"]
[null,null,null,null,null,null,null,"Украина",null,null,null,null,null,null,null,null,"г.Сарапул"]
[null,null,null,null,null,null,null,"Уругвай",null,null,null,null,null,null,null,null,"г.Сатка"]
[null,null,null,null,null,null,null,"Фиджи",null,null,null,null,null,null,null,null,"г.Саяногорск"]
[null,null,null,null,null,null,null,"Филиппины",null,null,null,null,null,null,null,null,"г.Саянск"]
[null,null,null,null,null,null,null,"Финляндия",null,null,null,null,null,null,null,null,"г.Свободный"]
[null,null,null,null,null,null,null,"Франция",null,null,null,null,null,null,null,null,"г.Северобайкальск"]
[null,null,null,null,null,null,null,"Хорватия",null,null,null,null,null,null,null,null,"г.Северодвинск"]
[null,null,null,null,null,null,null,"ЦАР",null,null,null,null,null,null,null,null,"г.Североуральск"]
[null,null,null,null,null,null,null,"Чад",null,null,null,null,null,null,null,null,"г.Северск"]
[null,null,null,null,null,null,null,"Чехия",null,null,null,null,null,null,null,null,"г.Сегежа"]
[null,null,null,null,null,null,null,"Чили",null,null,null,null,null,null,null,null,"г.Сельцо"]
[null,null,null,null,null,null,null,"Швейцария",null,null,null,null,null,null,null,null,"г.Семилуки"]
[null,null,null,null,null,null,null,"Швеция",null,null,null,null,null,null,null,null,"г.Сердобск"]
[null,null,null,null,null,null,null,"Шри-Ланка",null,null,null,null,null,null,null,null,"г.Серов"]
[null,null,null,null,null,null,null,"Эквадор",null,null,null,null,null,null,null,null,"г.Сим"]
[null,null,null,null,null,null,null,"Экваториальная Гвинея",null,null,null,null,null,null,null,null,"г.Сланцы"]
[null,null,null,null,null,null,null,"Эритрея",null,null,null,null,null,null,null,null,"г.Снежинск"]
[null,null,null,null,null,null,null,"Эсватини",null,null,null,null,null,null,null,null,"г.Сокол"]
[null,null,null,null,null,null,null,"Эстония",null,null,null,null,null,null,null,null,"г.Соль-Илецк"]
[null,null,null,null,null,null,null,"Эфиопия",null,null,null,null,null,null,null,null,"г.Сорск"]
[null,null,null,null,null,null,null,"Южная Африка",null,null,null,null,null,null,null,null,"г.Сосенский"]
[null,null,null,null,null,null,null,"Южная Осетия",null,null,null,null,null,null,null,null,"г.Спасск-Дальний"]
[null,null,null,null,null,null,null,"Южный Судан",null,null,null,null,null,null,null,null,"г.Суворов"]
[null,null,null,null,null,null,null,"Ямайка",null,null,null,null,null,null,null,null,"г.Суоярви"]
[null,null,null,null,null,null,null,"Япония",null,null,null,null,null,null,null,null,"г.Сураж"]
[null,null,null,null,null,null,null,null,null,null,null,null,null,null,null,null,"г.Сясьстрой"]
[null,null,null,null,null,null,null,null,null,null,null,null,null,null,null,null,"г.Тайга"]
[null,null,null,null,null,null,null,null,null,null,null,null,null,null,null,null,"г.Таштагол"]
[null,null,null,null,null,null,null,null,null,null,null,null,null,null,null,null,"г.Тейково"]
[null,null,null,null,null,null,null,null,null,null,null,null,null,null,null,null,"г.Тольятти"]
[null,null,null,null,null,null,null,null,null,null,null,null,null,null,null,null,"г.Топки"]
[null,null,null,null,null,null,null,null,null,null,null,null,null,null,null,null,"г.Трехгорный"]
[null,null,null,null,null,null,null,null,null,null,null,null,null,null,null,null,"г.Тулун"]
[null,null,null,null,null,null,null,null,null,null,null,null,null,null,null,null,"г.Тутаев"]
[null,null,null,null,null,null,null,null,null,null,null,null,null,null,null,null,"г.Тында"]
[null,null,null,null,null,null,null,null,null,null,null,null,null,null,null,null,"г.Удачный"]
[null,null,null,null,null,null,null,null,null,null,null,null,null,null,null,null,"г.Удомля"]
[null,null,null,null,null,null,null,null,null,null,null,null,null,null,null,null,"г.Уржум"]
[null,null,null,null,null,null,null,null,null,null,null,null,null,null,null,null,"г.Усолье-Сибирское"]
[null,null,null,null,null,null,null,null,null,null,null,null,null,null,null,null,"г.Усть-Илимск"]
[null,null,null,null,null,null,null,null,null,null,null,null,null,null,null,null,"г.Усть-Катав"]
[null,null,null,null,null,null,null,null,null,null,null,null,null,null,null,null,"г.Учалы"]
[null,null,null,null,null,null,null,null,null,null,null,null,null,null,null,null,"г.Фокино"]
[null,null,null,null,null,null,null,null,null,null,null,null,null,null,null,null,"г.Фролово"]
[null,null,null,null,null,null,null,null,null,null,null,null,null,null,null,null,"г.Фурманов"]
[null,null,null,null,null,null,null,null,null,null,null,null,null,null,null,null,"г.Чапаевск"]
[null,null,null,null,null,null,null,null,null,null,null,null,null,null,null,null,"г.Чебаркуль"]
[null,null,null,null,null,null,null,null,null,null,null,null,null,null,null,null,"г.Черемхово"]
[null,null,null,null,null,null,null,null,null,null,null,null,null,null,null,null,"г.Череповец"]
[null,null,null,null,null,null,null,null,null,null,null,null,null,null,null,null,"г.Черногорск"]
[null,null,null,null,null,null,null,null,null,null,null,null,null,null,null,null,"г.Чистополь"]
[null,null,null,null,null,null,null,null,null,null,null,null,null,null,null,null,"г.Чусовой"]
[null,null,null,null,null,null,null,null,null,null,null,null,null,null,null,null,"г.Шелехов"]
[null,null,null,null,null,null,null,null,null,null,null,null,null,null,null,null,"г.Шумерля"]
[null,null,null,null,null,null,null,null,null,null,null,null,null,null,null,null,"г.Южа"]
[null,null,null,null,null,null,null,null,null,null,null,null,null,null,null,null,"г.Юрга"]
[null,null,null,null,null,null,null,null,null,null,null,null,null,null,null,null,"г.Яровое"]
[null,null,null,null,null,null,null,null,null,null,null,null,null,null,null,null,"г.Ясный"]
[null,null,null,null,null,null,null,null,null,null,null,null,null,null,null,null,"пос.Айхал"]
[null,null,null,null,null,null,null,null,null,null,null,null,null,null,null,null,"пос.Атяшево"]
[null,null,null,null,null,null,null,null,null,null,null,null,null,null,null,null,"пос.Белая Березка"]
[null,null,null,null,null,null,null,null,null,null,null,null,null,null,null,null,"пос.Белогорск"]
[null,null,null,null,null,null,null,null,null,null,null,null,null,null,null,null,"пос.Бытошь"]
[null,null,null,null,null,null,null,null,null,null,null,null,null,null,null,null,"пос.Варгаши"]
[null,null,null,null,null,null,null,null,null,null,null,null,null,null,null,null,"пос.Великооктябрьский"]
[null,null,null,null,null,null,null,null,null,null,null,null,null,null,null,null,"пос.Вершина Тёи"]
[null,null,null,null,null,null,null,null,null,null,null,null,null,null,null,null,"пос.Вершино-Дарасунский"]
[null,null,null,null,null,null,null,null,null,null,null,null,null,null,null,null,"пос.Восток"]
[null,null,null,null,null,null,null,null,null,null,null,null,null,null,null,null,"пос.Вяртсиля"]
[null,null,null,null,null,null,null,null,null,null,null,null,null,null,null,null,"пос.Горный"]
[null,null,null,null,null,null,null,null,null,null,null,null,null,null,null,null,"пос.Демьяново"]
[null,null,null,null,null,null,null,null,null,null,null,null,null,null,null,null,"пос.Елань-Коленовский"]
[null,null,null,null,null,null,null,null,null,null,null,null,null,null,null,null,"пос.Елатьма"]
[null,null,null,null,null,null,null,null,null,null,null,null,null,null,null,null,"пос.Жарковский"]
[null,null,null,null,null,null,null,null,null,null,null,null,null,null,null,null,"пос.Жешарт"]
[null,null,null,null,null,null,null,null,null,null,null,null,null,null,null,null,"пос.Жирекен"]
[null,null,null,null,null,null,null,null,null,null,null,null,null,null,null,null,"пос.Знаменка"]
[null,null,null,null,null,null,null,null,null,null,null,null,null,null,null,null,"пос.Ивот"]
[null,null,null,null,null,null,null,null,null,null,null,null,null,null,null,null,"пос.Кадошкино"]
[null,null,null,null,null,null,null,null,null,null,null,null,null,null,null,null,"пос.Калашниково"]
[null,null,null,null,null,null,null,null,null,null,null,null,null,null,null,null,"пос.Каменка"]
[null,null,null,null,null,null,null,null,null,null,null,null,null,null,null,null,"пос.Каменск"]
[null,null,null,null,null,null,null,null,null,null,null,null,null,null,null,null,"пос.Камские Поляны"]
[null,null,null,null,null,null,null,null,null,null,null,null,null,null,null,null,"пос.Кизема"]
[null,null,null,null,null,null,null,null,null,null,null,null,null,null,null,null,"пос.Кокуй"]
[null,null,null,null,null,null,null,null,null,null,null,null,null,null,null,null,"пос.Колобово"]
[null,null,null,null,null,null,null,null,null,null,null,null,null,null,null,null,"пос.Комсомольский"]
[null,null,null,null,null,null,null,null,null,null,null,null,null,null,null,null,"пос.Красная Поляна"]
[null,null,null,null,null,null,null,null,null,null,null,null,null,null,null,null,"пос.Краснобродский"]
[null,null,null,null,null,null,null,null,null,null,null,null,null,null,null,null,"пос.Краснофарфорный"]
[null,null,null,null,null,null,null,null,null,null,null,null,null,null,null,null,"пос.Красный Яр"]
[null,null,null,null,null,null,null,null,null,null,null,null,null,null,null,null,"пос.Лесной"]
[null,null,null,null,null,null,null,null,null,null,null,null,null,null,null,null,"пос.Линево"]
[null,null,null,null,null,null,null,null,null,null,null,null,null,null,null,null,"пос.Липовцы"]
[null,null,null,null,null,null,null,null,null,null,null,null,null,null,null,null,"пос.Лучегорск"]
[null,null,null,null,null,null,null,null,null,null,null,null,null,null,null,null,"пос.Любохна"]
[null,null,null,null,null,null,null,null,null,null,null,null,null,null,null,null,"пос.Малышева"]
[null,null,null,null,null,null,null,null,null,null,null,null,null,null,null,null,"пос.Медногорский"]
[null,null,null,null,null,null,null,null,null,null,null,null,null,null,null,null,"пос.Мокшан"]
[null,null,null,null,null,null,null,null,null,null,null,null,null,null,null,null,"пос.Мохсоголлох"]
[null,null,null,null,null,null,null,null,null,null,null,null,null,null,null,null,"пос.Муезерский"]
[null,null,null,null,null,null,null,null,null,null,null,null,null,null,null,null,"пос.Мундыбаш"]
[null,null,null,null,null,null,null,null,null,null,null,null,null,null,null,null,"пос.Мурыгино"]
[null,null,null,null,null,null,null,null,null,null,null,null,null,null,null,null,"пос.Мухтолово"]
[null,null,null,null,null,null,null,null,null,null,null,null,null,null,null,null,"пос.Надвоицы"]
[null,null,null,null,null,null,null,null,null,null,null,null,null,null,null,null,"пос.Нижний Куранах"]
[null,null,null,null,null,null,null,null,null,null,null,null,null,null,null,null,"пос.Никель"]
[null,null,null,null,null,null,null,null,null,null,null,null,null,null,null,null,"пос.Новоорловск"]
[null,null,null,null,null,null,null,null,null,null,null,null,null,null,null,null,"пос.Новопавловка"]
[null,null,null,null,null,null,null,null,null,null,null,null,null,null,null,null,"пос.Новошахтинский"]
[null,null,null,null,null,null,null,null,null,null,null,null,null,null,null,null,"пос.Октябрьский"]
[null,null,null,null,null,null,null,null,null,null,null,null,null,null,null,null,"пос.Парфино"]
[null,null,null,null,null,null,null,null,null,null,null,null,null,null,null,null,"пос.Первомайский"]
[null,null,null,null,null,null,null,null,null,null,null,null,null,null,null,null,"пос.Первомайский"]
[null,null,null,null,null,null,null,null,null,null,null,null,null,null,null,null,"пос.Песочное"]
[null,null,null,null,null,null,null,null,null,null,null,null,null,null,null,null,"пос.Петровский"]
[null,null,null,null,null,null,null,null,null,null,null,null,null,null,null,null,"пос.Пиндуши"]
[null,null,null,null,null,null,null,null,null,null,null,null,null,null,null,null,"пос.Побединка"]
[null,null,null,null,null,null,null,null,null,null,null,null,null,null,null,null,"пос.Погар"]
[null,null,null,null,null,null,null,null,null,null,null,null,null,null,null,null,"пос.Ревда"]
[null,null,null,null,null,null,null,null,null,null,null,null,null,null,null,null,"пос.Решетиха"]
[null,null,null,null,null,null,null,null,null,null,null,null,null,null,null,null,"пос.Савино"]
[null,null,null,null,null,null,null,null,null,null,null,null,null,null,null,null,"пос.Саган-Нур"]
[null,null,null,null,null,null,null,null,null,null,null,null,null,null,null,null,"пос.Сазоново"]
[null,null,null,null,null,null,null,null,null,null,null,null,null,null,null,null,"пос.Светлый"]
[null,null,null,null,null,null,null,null,null,null,null,null,null,null,null,null,"пос.Североонежск"]
[null,null,null,null,null,null,null,null,null,null,null,null,null,null,null,null,"пос.Селенгинск"]
[null,null,null,null,null,null,null,null,null,null,null,null,null,null,null,null,"пос.Силикатный"]
[null,null,null,null,null,null,null,null,null,null,null,null,null,null,null,null,"пос.Спирово"]
[null,null,null,null,null,null,null,null,null,null,null,null,null,null,null,null,"пос.Ставрово"]
[null,null,null,null,null,null,null,null,null,null,null,null,null,null,null,null,"пос.Степное Озеро"]
[null,null,null,null,null,null,null,null,null,null,null,null,null,null,null,null,"пос.Стрижи"]
[null,null,null,null,null,null,null,null,null,null,null,null,null,null,null,null,"пос.Теплоозерск"]
[null,null,null,null,null,null,null,null,null,null,null,null,null,null,null,null,"пос.Тургенево"]
[null,null,null,null,null,null,null,null,null,null,null,null,null,null,null,null,"пос.Угловка"]
[null,null,null,null,null,null,null,null,null,null,null,null,null,null,null,null,"пос.Умет"]
[null,null,null,null,null,null,null,null,null,null,null,null,null,null,null,null,"пос.Чегдомын"]
[null,null,null,null,null,null,null,null,null,null,null,null,null,null,null,null,"пос.Шерегеш"]
[null,null,null,null,null,null,null,null,null,null,null,null,null,null,null,null,"пос.Шерловая Гора"]
[null,null,null,null,null,null,null,null,null,null,null,null,null,null,null,null,"пос.Эльбан"]
[null,null,null,null,null,null,null,null,null,null,null,null,null,null,null,null,"пос.Юго-Камский"]
[null,null,null,null,null,null,null,null,null,null,null,null,null,null,null,null,"пос.Янтарный "]
[null,null,null,null,null,null,null,null,null,null,null,null,null,null,null,null,"пос.Ярославский"]
[null,null,null,null,null,null,null,null,null,null,null,null,null,null,null,null,"пос.Яшкино"]
[null,null,null,null,null,null,null,null,null,null,null,null,null,null,null,null,"рабочий поселок (поселок городского типа) Прогресс"]
[null,null,null,null,null,null,null,null,null,null,null,null,null,null,null,null,"с.Светлогорье"]
[null,null,null,null,null,null,null,null,null,null,null,null,null,null,null,null,"с.Туим"]